Workbook

Sheet ניהול (hidden)
A1: סוג המסגרת | C1: פעולות נעילה/ פתיחה
A2: נא לבחור מתוך הרשימה | C2: כלים | D2: הסבר
A3: מרכז רש"ת/מע"ש 21+ | B3: 1 | D3: הכפתור נועל את הנתונים הנבחרים
A4: מפעל רב נכותי 21+ | D4: הקובץ נשלח עם נעילת נתוני התקן ונוסחאות
A5: מרכז יום (טיפולי/סיעודי) 21+ | B5: 2 | D5: הכפתור פותח את כל הנתונים
A6: יח' טיפולית במרכז רש"ת/מע"ש 21+ | D6: יש להפעיל אותו לאחר אישור בקשת הגוף
A7: יח' מזדקנים במרכז רש"ת | D7: לצורך נעילת שלב אישור בקשת הגוף
A8: מרכז יום לגמלאים | B8: 3 | D8: יש להפעיל את הכפתור אחרי פעולה מס' 2
D9: ואחרי זה כפתור מס' 1
B10: 4 | D10: הכפתור נדרש במקרים מיוחדים
D11: במידה ויש לעשות תיקונים אחרי שלב האישור
D12: או לצרכים טכניים
D13: להפעלתו יש לעשות פעולה מס' 2
D14: ואחרי תיקון נתוני האישור לבצע פעולות 3 ו- 1
B15: 5 | D15: סינון ציוד מוזמן בסעיף "סיכום מפורט" אינו מוגן
D16: מפני שהסינון לא עובד במצב נעול, לכן יש להיזהר
D17: מכול פעולה מעבר מהפעלת הסינון באמצאות הכפתורים

Sheet א. פתיח
A9: גרסה : 12.01.25
B10: תקן ציוד למרכזי יום טיפוליים סיעודיים ו/או תעסוקה
B11: ציוד כללי, פרא רפואי, חדר סנוזלן, ציוד למטבח מבשל וציוד לצוות.
B13: רקע כללי
B14: הסיוע ניתן לשיפוץ או ציוד. תקן זה עוסק בציוד.
B15: מענק מעלה | C15: עד 100,000 ₪ אחת ל 3 שנים מתאריך תשלום אחרון.
B16: מענק צמרת | C16: עד 500,000 ₪ ועד 50% מהעלות הכוללת, הנמוך מביניהם, אחת ל 5 שנים מתאריך תשלום אחרון.
B17: יש להיכנס לאתר קרן שלם, פיתוח פיזי מענקים, ולפעול בהתאם להנחיות המתעדכנות באתר.
B18: מטרת תקן ציוד
B19: לסייע לרשויות או גופים המפעילים מסגרות, לבנות את רשימת הציוד בהתאם להיקף ולסוג פעילותם.
B20: התקן מהווה רשימת ציוד מומלצת אשר ניתן לבחור מתוכה את פריטי הציוד הדרושים.
B21: ניתן להשתמש בתקן בצורה מודולרית בהתאם למספר המשתתפים, גודל המקום והתכנים המופעלים בו.
B22: לא נדרש להציג שתי הצעות מחיר, למעט בגיליון ציוד נוסף= ציוד שאינו נמצא בתקן.
B24: הבהרות
B26: הסיוע בציוד למרכזי יום סיעודיים טיפוליים ותעסוקה, יינתן על פי מספר משתתפים.
B27: לתשומת ליבכם, הכמויות של חלק מהציוד נקבעות לפי מספר האנשים במסגרת (כמו לדוגמא: כמות הכיסאות והשולחנות),
B28: ואילו הכמויות של חלק אחר מהציוד הינן קבועות ואינן תלויות במספר האנשים (כמו לדוגמא: ציוד מטבח או מתקני חצר).
B29: במידה וקיים צורך בציוד אשר אינו מופיע בתקן ניתן לבקש בגיליון ציוד נוסף.
B30: הסכומים המופיעים בטבלאות כוללים מע"מ .
B31: גובה הסיוע כפוף להחלטות ומדיניות הנהלת הקרן המשתנות/מתעדכנות באתר הקרן.
B33: הנחיות למילוי הקובץ:
B34: שלב הגשת הבקשה:
B35: עליכם למלא גיליון ג' טרם מילוי הגיליונות האחרים.
B36: גיליונות ד' עד י"ב עליכם למלא רק עמודות הצבועות בירוק.
B37: אין לגעת בתאים האחרים- תאים אלו "נעולים".
B39: שלב הדיווח על ההוצאות:
B40: לאחר אישור הבקשה יוחזר הגיליון עם הפריטים המאושרים.
B41: גיליונות ד' עד י"ב, עליכם למלא רק עמודות הצבועות בכתום.
B42: אין לגעת בתאים האחרים- תאים אלו "נעולים".

Sheet ב. תוכן עניינים
B8: תקן ציוד למרכזי יום טיפוליים סיעודיים ו/או תעסוקה
B9: ציוד פרא רפואי, חדר סנוזלן, ציוד למטבח מבשל וציוד לצוות.
B11: תוכן עניינים
B13: לשונית בקובץ | C13: תוכן הלשונית
B14: א | C14: פתיח
B15: ב | C15: תוכן עניינים
B16: ג | C16: שאלון מגיש הבקשה
B17: ד | C17: ציוד כללי למתחם
B18: ה | C18: ציוד חדרי קבוצות
B19: ו | C19: ריפוי בעיסוק
B20: ז | C20: קלינאות תקשורת
B21: ח | C21: חדר סנוזלן
B22: ט | C22: מתקני חצר
B23: י | C23: פיזיותרפיה
B24: יא | C24: ציוד טיפולי שיקומי
B25: יב | C25: ציוד מטבח מחמם
B26: יג | C26: ציוד מטבח מבשל
B27: יד | C27: ציוד פעילות גופנית- זוזו
B28: טו | C28: ציוד לצוות
B29: טז | C29: ציוד נוסף
B30: יח | C30: סיכום
B31: יט | C31: סיכום מפורט (לשימוש משרדי)

Sheet ג. שאלון למילוי מגיש הבקשה
B8: תקן ציוד למרכזי יום טיפוליים סיעודיים ו/או תעסוקה
B9: ציוד פרא רפואי, חדר סנוזלן, ציוד למטבח מבשל וציוד לצוות.
B12: שאלון למגיש הבקשה
B14: הערות והסברים למילוי הבקשה
B15: יש למלא את השאלון לעיל לפני מעבר לכתב הכמויות
B16: הגוף המבקש מתבקש למלא רק פרטים בתאים המסומנים בצבע ירוק . אין לגעת בתאים אחרים.
B17: כל מחירי הציוד כוללים מע"מ.
B18: קרן שלם מסייעת למסגרות לאנשים עם מש"ה. במסגרות לאוכלוסיה רב נכותית, ההתיחסות הינה עפי מס' המקבלי השרות המוכרים עם מש"ה.
C22: תאריך הגשת הבקשה
C24: שם המסגרת
C26: סוג המסגרת | D26: נא לבחור מתוך הרשימה
C28: שם הרשות
C30: שם הארגון המפעיל
C32: כתובת המסגרת
C34: שם ושם משפחה איש קשר
C36: תפקיד איש קשר
C38: נייד איש קשר
C40: מייל איש קשר
C42: מספר האנשים שעבורם מיועד הפרויקט
C44: כמה מתוכם מוכרים עם מש"ה (מוגבלות שיכלית התפתחותית)
C46: האם לפרויקט אושר מימון מהביטוח הלאומי ב 3 השנים האחרונות? | D46: נא לבחור
C47: אין כפילות במימון הביטוח הלאומי וקרן שלם

Sheet ד. ציוד כללי למתחם
B1: ='ב. תוכן עניינים'!C17 -> ציוד כללי למתחם | C1: =IF('ג. שאלון למילוי מגיש הבקשה'!$D$46="כן","התקבל מימון ביטוח לאומי, אסור לבקש מימון כפול","") ->  | G1: שלב הגשת הבקשה: | K1: שלב הדיווח על ההוצאות:
B2: שם המסגרת : | C2: ='ג. שאלון למילוי מגיש הבקשה'!D24 -> 0 | G2: עליכם למלא גיליון ג' בטרם מילוי הגיליונות האחרים | K2: לאחר אישור הבקשה יוחזר הגיליון עם הפריטים המאושרים
B3: סוג המסגרת : | C3: ='ג. שאלון למילוי מגיש הבקשה'!D26 -> נא לבחור מתוך הרשימה | G3: גיליונות ד' עד י"ב עליכם למלא רק עמודות הצבועות בירוק | K3: גיליונות ד' עד י"ב עליכם למלא רק עמודות הצבועות בוורוד
B4: מספר האנשים שעבורם מיועד הפרויקט : | C4: ='ג. שאלון למילוי מגיש הבקשה'!D42 -> 0 | G4: אין לגעת בתאים האחרים- תאים אלו יהיו נעולים | K4: אין לגעת בתאים האחרים- תאים אלו יהיו נעולים
B6: תקן ציוד | G6: בקשת הגוף | K6: דיווח לתשלום לאחר ביצוע
B7: פריטים | C7: כמות תקן | D7: עלות ליחידה כולל מע"מ | E7: סך עלות כולל מע"מ | G7: כמות מבוקשת עבור חדר בודד | H7: תקציב מבוקש | I7: הערות הגוף | K7: הפריט שנרכש | L7: מס' חשבונית מס | M7: תאריך חשבונית מס | N7: סכום כולל מע"מ
B8: ציוד סננאות ותעסוקה | G8: =B8 -> ציוד סננאות ותעסוקה | K8: =G8 -> ציוד סננאות ותעסוקה
B9: רמה א' - סט ציוד לסדנאות: קרמיקה/ נגרות/ מחשבים ומולטימדיה | C9: =IF($C$4<31,1,IF($C$4<61,2,3)) -> 1 | D9: 30000 | E9: =D9*C9 -> 30000 | F9: =IF(C$1="","","אסור להזמין") ->  | H9: =G9*D9 -> 0
B10: רמה ב' - סט ציוד לסדנאות: גינון עם אדניות מוגבהות/ מוזיקה/ בישול/ אפיה/ בית קפה | C10: =IF($C$4<31,1,IF($C$4<61,2,3)) -> 1 | D10: 18000 | E10: =D10*C10 -> 18000 | F10: =IF(C$1="","","אסור להזמין") ->  | H10: 0
B11: סה"כ ציוד סדנאות ותעסוקה כולל מע"מ | E11: =SUM(E9:E10) -> 48000 | H11: =SUM(H9:H10) -> 0 | I11: =B11 -> סה"כ ציוד סדנאות ותעסוקה כולל מע"מ | K11: =B11 -> סה"כ ציוד סדנאות ותעסוקה כולל מע"מ | N11: =SUM(N9:N10) -> 0
B12: ריהוט וציוד חללים משותפים | G12: =B12 -> ריהוט וציוד חללים משותפים | K12: =G12 -> ריהוט וציוד חללים משותפים
B13: פינת ישיבה ללובי | C13: =IF($C$4<31,1,IF($C$4<61,2,3)) -> 1 | D13: 10000 | E13: 10000 | F13: =IF(C$1="","","אסור להזמין") ->  | H13: =G13*D13 -> 0
B14: ציוד מחסן - מדפים | C14: =ROUNDUP($C$4/10,0) -> 0 | D14: 1000 | E14: 0 | H14: 0
B15: אביזרי נוי | C15: 1 | D15: =IF($C$4<31,12000,IF($C$4<61,15000,20000)) -> 12000 | E15: 12000 | H15: 0
B16: סה"כ ריהוט וציוד חללים משותפים כולל מע"מ | E16: =SUM(E13:E15) -> 22000 | H16: =SUM(H13:H15) -> 0 | I16: =B16 -> סה"כ ריהוט וציוד חללים משותפים כולל מע"מ | K16: =B16 -> סה"כ ריהוט וציוד חללים משותפים כולל מע"מ | N16: =SUM(N13:N15) -> 0
B17: ציוד מולטימדיה כללי | G17: =B17 -> ציוד מולטימדיה כללי | K17: =G17 -> ציוד מולטימדיה כללי
B18: מערכת הקרנה ומסך חשמלי | C18: 1 | D18: 8000 | E18: 8000 | F18: =IF(C$1="","","אסור להזמין") ->  | H18: =G18*D18 -> 0
B19: מחשב קומפלט | C19: =IF($C$4<31,1,IF($C$4<61,2,3)) -> 1 | D19: 5000 | E19: 5000 | H19: 0
B20: ציוד הגברה | C20: 1 | D20: =IF($C$4<31,7000,IF($C$4<61,10000,15000)) -> 7000 | E20: 7000 | H20: 0
B21: סה"כ ציוד מולטימדיה כללי כולל מע"מ | E21: =SUM(E18:E20) -> 20000 | H21: =SUM(H18:H20) -> 0 | I21: =B21 -> סה"כ ציוד מולטימדיה כללי כולל מע"מ | K21: =B21 -> סה"כ ציוד מולטימדיה כללי כולל מע"מ | N21: =SUM(N18:N20) -> 0
B22: ציוד אחזקת מתחם | G22: =B22 -> ציוד אחזקת מתחם | K22: =G22 -> ציוד אחזקת מתחם
B23: מכונת שטיפת רצפות | C23: 1 | D23: =IF($C$4<31,15000,25000) -> 15000 | E23: =D23*C23 -> 15000 | F23: =IF(C$1="","","אסור להזמין") ->  | H23: =G23*D23 -> 0
B24: שואב אבק תעשייתי | C24: 1 | D24: 4000 | E24: 4000 | H24: 0
B25: מכונת כביסה 7 ק"ג | C25: 1 | D25: 4500 | E25: 4500 | H25: 0
B26: מייבש כביסה 7 ק"ג | C26: 1 | D26: 3000 | E26: 3000 | H26: 0
B27: סולם | C27: 1 | D27: 1500 | E27: 1500 | H27: 0
B28: ארגז כלים | C28: 1 | D28: =IF($C$4<31,800,1600) -> 800 | E28: 800 | H28: 0
B29: ציוד לתחזוקת חצר וגינון | C29: 1 | D29: =IF($C$4<31,2000,4000) -> 2000 | E29: 2000 | H29: 0
B30: סה"כ ציוד אחזקת מתחם כולל מע"מ | E30: =SUM(E23:E29) -> 30800 | H30: =SUM(H23:H29) -> 0 | I30: =B30 -> סה"כ ציוד אחזקת מתחם כולל מע"מ | K30: =B30 -> סה"כ ציוד אחזקת מתחם כולל מע"מ | N30: =SUM(N23:N29) -> 0
B31: ציוד אבטחה ובטיחות | G31: =B31 -> ציוד אבטחה ובטיחות | K31: =G31 -> ציוד אבטחה ובטיחות
B32: מערכת מצלמות אבטחה | C32: 1 | D32: =5000+$C$4*2000*2/10 -> 5000 | E32: 5000 | F32: =IF(C$1="","","אסור להזמין") ->  | H32: 0
B33: מערכת כריזת חירום | C33: 1 | D33: =5000+$C$4*1000*1.5/10 -> 5000 | E33: 5000 | H33: 0
B34: סה"כ ציוד אבטחה ובטיחות כולל מע"מ | E34: =SUM(E32:E33) -> 10000 | H34: =SUM(H32:H33) -> 0 | I34: =B34 -> סה"כ ציוד אבטחה ובטיחות כולל מע"מ | K34: =B34 -> סה"כ ציוד אבטחה ובטיחות כולל מע"מ | N34: =SUM(N32:N33) -> 0
B35: ציוד עזרה ראשונה | G35: =B35 -> ציוד עזרה ראשונה | K35: =G35 -> ציוד עזרה ראשונה
B36: תיק עזרה ראשונה | C36: =IF($C$4<31,1,IF($C$4<61,2,3)) -> 1 | D36: 700 | E36: =C36*D36 -> 700 | F36: =IF(C$1="","","אסור להזמין") ->  | H36: 0
B37: דיפיבריליאטור | C37: 1 | D37: 7000 | E37: 7000 | H37: 0
B38: ארון תרופות | C38: =IF($C$4<31,1,IF($C$4<61,2,3)) -> 1 | D38: 1300 | E38: 1300 | H38: 0
B39: סה"כ ציוד עזרה ראשונה כולל מע"מ | E39: =SUM(E36:E38) -> 9000 | H39: =SUM(H36:H38) -> 0 | I39: =B39 -> סה"כ ציוד עזרה ראשונה כולל מע"מ | K39: =B39 -> סה"כ ציוד עזרה ראשונה כולל מע"מ | N39: =SUM(N36:N38) -> 0
B40: ציוד חדר אוכל | G40: =B40 -> ציוד חדר אוכל | K40: =G40 -> ציוד חדר אוכל
B41: שולחן חדר אוכל | C41: =ROUNDUP($C$4/4,0) -> 0 | D41: 3000 | E41: =C41*D41 -> 0 | F41: =IF(C$1="","","אסור להזמין") ->  | H41: =G41*D41 -> 0
B42: כיסא חדר אוכל | C42: =$C$4 -> 0 | D42: 500 | E42: 0 | H42: 0
B43: סט כלי אוכל | C43: =ROUNDUP($C$4*1.2,0) -> 0 | D43: 200 | E43: 0 | H43: 0
B44: עגלת אשפה | C44: =IF($C$4<31,1,IF($C$4<61,2,3)) -> 1 | D44: 1000 | E44: 1000 | H44: 0
B45: סה"כ ציוד חדר אוכל כולל מע"מ | E45: =SUM(E41:E44) -> 1000 | H45: =SUM(H41:H44) -> 0 | I45: =B45 -> סה"כ ציוד חדר אוכל כולל מע"מ | K45: =B45 -> סה"כ ציוד חדר אוכל כולל מע"מ | N45: =SUM(N41:N44) -> 0
B46: שירותי אדריכלות ועיצוב פנים | C46: 1 | D46: =IF($C$4<31,20000,IF($C$4<61,30000,50000)) -> 20000 | E46: =C46*D46 -> 20000 | F46: =IF(C$1="","","אסור להזמין") ->  | H46: =G46*D46 -> 0
B47: סה"כ ציוד כללי למתחם כולל מע"מ | E47: =E11+E16+E21+E30+E34+E39+E45+E46 -> 160800 | H47: =H11+H16+H21+H30+H34+H39+H45+H46 -> 0 | I47: =B47 -> סה"כ ציוד כללי למתחם כולל מע"מ | K47: =B47 -> סה"כ ציוד כללי למתחם כולל מע"מ | N47: =N11+N16+N21+N30+N34+N39+N45+N46 -> 0

Sheet ה. ציוד חדרי קבוצות
B1: ='ב. תוכן עניינים'!C18 -> ציוד חדרי קבוצות | C1: =IF('ג. שאלון למילוי מגיש הבקשה'!$D$46="כן","התקבל מימון ביטוח לאומי, אסור לבקש מימון כפול","") ->  | G1: שלב הגשת הבקשה: | K1: שלב הדיווח על ההוצאות:
B2: שם המסגרת : | C2: ='ג. שאלון למילוי מגיש הבקשה'!D24 -> 0 | G2: עליכם למלא גיליון ג' בטרם מילוי הגיליונות האחרים | K2: לאחר אישור הבקשה יוחזר הגיליון עם הפריטים המאושרים
B3: סוג המסגרת : | C3: ='ג. שאלון למילוי מגיש הבקשה'!D26 -> נא לבחור מתוך הרשימה | G3: גיליונות ד' עד י"ב עליכם למלא רק עמודות הצבועות בירוק | K3: גיליונות ד' עד י"ב עליכם למלא רק עמודות הצבועות בוורוד
B4: מספר האנשים שעבורם מיועד הפרויקט : | C4: ='ג. שאלון למילוי מגיש הבקשה'!D42 -> 0 | G4: אין לגעת בתאים האחרים- תאים אלו יהיו נעולים | K4: אין לגעת בתאים האחרים- תאים אלו יהיו נעולים
B6: תקן ציוד | G6: בקשת הגוף | K6: דיווח לתשלום לאחר ביצוע
B7: פריטים | C7: כמות תקן | D7: עלות ליחידה כולל מע"מ | E7: סך עלות כולל מע"מ | G7: כמות מבוקשת עבור חדר בודד | H7: תקציב מבוקש | I7: הערות הגוף | K7: הפריט שנרכש | L7: מס' חשבונית מס | M7: תאריך חשבונית מס | N7: סכום כולל מע"מ
B8: ציוד וריוט חדרי קבוצות | G8: =B8 -> ציוד וריוט חדרי קבוצות | K8: =G8 -> ציוד וריוט חדרי קבוצות
B9: כסא בחדר קבוצה | C9: =$C$4 -> 0 | D9: 500 | E9: =D9*C9 -> 0 | F9: =IF(C$1="","","אסור להזמין") ->  | H9: =G9*D9 -> 0
B10: שולחן בחדר קבוצה | C10: =ROUNDUP($C$4/4,0) -> 0 | D10: 3000 | E10: 0 | H10: 0
B11: שולחן מחשב | C11: =ROUNDUP($C$4/10,0) -> 0 | D11: 1200 | E11: 0 | H11: 0
B12: כורסא | C12: =ROUNDUP($C$4/10,0) -> 0 | D12: 3000 | E12: 0 | H12: 0
B13: ארון איחסון | C13: =ROUNDUP($C$4*2/10,0) -> 0 | D13: 4500 | E13: 0 | H13: 0
B14: כוננית מדפים | C14: =ROUNDUP($C$4/10,0) -> 0 | D14: 1500 | E14: 0 | H14: 0
B15: ארון לוקרים | C15: =ROUNDUP($C$4*1.1,0) -> 0 | D15: 500 | E15: 0 | H15: 0
B16: מראה | C16: =ROUNDUP($C$4/10,0) -> 0 | D16: 300 | E16: 0 | H16: 0
B17: שעון קיר | C17: 0 | D17: 200 | E17: 0 | H17: 0
B18: וילונות חסיני אש | C18: =ROUNDUP($C$4*1.3/10,0) -> 0 | D18: =12*500 -> 6000 | E18: 0 | H18: 0
B19: שלוט פנים לאיפיון חדרים | C19: =ROUNDUP($C$4*1.3/10,0) -> 0 | D19: 200 | E19: 0 | H19: 0
B20: סה"כ ציוד וריהוט חדרי קבוצות כולל מע"מ | E20: =SUM(E9:E19) -> 0 | H20: =SUM(H9:H19) -> 0 | I20: =B20 -> סה"כ ציוד וריהוט חדרי קבוצות כולל מע"מ | K20: =B20 -> סה"כ ציוד וריהוט חדרי קבוצות כולל מע"מ | N20: =SUM(N9:N19) -> 0
B21: מחשבים וציוד מולטימדיה | G21: =B21 -> מחשבים וציוד מולטימדיה | K21: =G21 -> מחשבים וציוד מולטימדיה
B22: מחשב קומפלט | C22: =ROUNDUP($C$4/10,0) -> 0 | D22: 5000 | E22: 0 | F22: =IF(C$1="","","אסור להזמין") ->  | H22: =G22*D22 -> 0
B23: מדפסת משולבת | C23: 0 | D23: 1600 | E23: 0 | F23: =IF(C$1="","","אסור להזמין") ->  | H23: 0
B24: טלוויזיה 65" + מגן | C24: 0 | D24: 4500 | E24: 0 | F24: =IF(C$1="","","אסור להזמין") ->  | H24: 0
B25: סה"כ מחשבים וציוד מולטימדיה כולל מע"מ | E25: =SUM(E22:E24) -> 0 | H25: =SUM(H22:H24) -> 0 | I25: =B25 -> סה"כ מחשבים וציוד מולטימדיה כולל מע"מ | K25: =B25 -> סה"כ מחשבים וציוד מולטימדיה כולל מע"מ | N25: =SUM(N22:N24) -> 0
B26: ציוד סניטריה לחדרי שירותים | G26: =B26 -> ציוד סניטריה לחדרי שירותים | K26: =G26 -> ציוד סניטריה לחדרי שירותים
B27: מתקן נייר טואלט כפול | C27: =ROUNDUP($C$4*1.3/10,0) -> 0 | D27: 250 | E27: 0 | F27: =IF(C$1="","","אסור להזמין") ->  | H27: =G27*D27 -> 0
B28: פח אשפה | C28: 0 | D28: 450 | E28: 0 | H28: 0
B29: דיספנסר לסבון נוזלי | C29: 0 | D29: 200 | E29: 0 | H29: 0
B30: מתקן מגבות נייר | C30: 0 | D30: 300 | E30: 0 | H30: 0
B31: מראה | C31: 0 | D31: 300 | E31: 0 | H31: 0
B32: מתקן ניקוי אסלה | C32: =ROUNDUP($C$4*1.3/10,0) -> 0 | D32: 200 | E32: 0 | H32: 0
B33: סה"כ ציוד סניטריה לחדרי שירותים כולל מע"מ | E33: =SUM(E27:E32) -> 0 | H33: =SUM(H27:H32) -> 0 | I33: =B33 -> סה"כ ציוד סניטריה לחדרי שירותים כולל מע"מ | K33: =B33 -> סה"כ ציוד סניטריה לחדרי שירותים כולל מע"מ | N33: =SUM(N27:N32) -> 0
B34: ציוד גן, חצר ומרפסות | G34: =B34 -> ציוד גן, חצר ומרפסות | K34: =G34 -> ציוד גן, חצר ומרפסות
B35: שמשיה למרפסת | C35: =ROUNDUP($C$4/10,0) -> 0 | D35: 4000 | E35: 0 | F35: =IF(C$1="","","אסור להזמין") ->  | H35: 0 | N35: =H35 -> 0
B36: פינת ישיבה למרפסת כיתה | C36: 0 | D36: 5000 | E36: 0 | F36: =IF(C$1="","","אסור להזמין") ->  | H36: 0 | N36: 0
B37: סה"כ ציוד גן, חצר ומרפסות כולל מע"מ | E37: =SUM(E35:E36) -> 0 | H37: =SUM(H35:H36) -> 0 | I37: =B37 -> סה"כ ציוד גן, חצר ומרפסות כולל מע"מ | K37: =B37 -> סה"כ ציוד גן, חצר ומרפסות כולל מע"מ | N37: =SUM(N35:N36) -> 0
B38: סה"כ ציוד וריהוט חדרי קבוצות כולל מע"מ | E38: =E20+E25+E33+E37 -> 0 | H38: =H20+H25+H33+H37 -> 0 | I38: =B38 -> סה"כ ציוד וריהוט חדרי קבוצות כולל מע"מ | K38: =B38 -> סה"כ ציוד וריהוט חדרי קבוצות כולל מע"מ | N38: =N20+N25+N33+N37 -> 0

Sheet ו. ריפוי בעיסוק
B1: ='ב. תוכן עניינים'!C19 -> ריפוי בעיסוק | G1: שלב הגשת הבקשה: | K1: שלב הדיווח על ההוצאות:
B2: שם המסגרת : | C2: ='ג. שאלון למילוי מגיש הבקשה'!D24 -> 0 | G2: עליכם למלא גיליון ג' בטרם מילוי הגיליונות האחרים | K2: לאחר אישור הבקשה יוחזר הגיליון עם הפריטים המאושרים
B3: סוג המסגרת : | C3: ='ג. שאלון למילוי מגיש הבקשה'!D26 -> נא לבחור מתוך הרשימה | G3: גיליונות ד' עד י"ב עליכם למלא רק עמודות הצבועות בירוק | K3: גיליונות ד' עד י"ב עליכם למלא רק עמודות הצבועות בוורוד
B4: מספר האנשים שעבורם מיועד הפרויקט : | C4: ='ג. שאלון למילוי מגיש הבקשה'!D42 -> 0 | G4: אין לגעת בתאים האחרים- תאים אלו יהיו נעולים | K4: אין לגעת בתאים האחרים- תאים אלו יהיו נעולים
B6: תקן ציוד | G6: בקשת הגוף | K6: דיווח לתשלום לאחר ביצוע
B7: פריטים | C7: כמות תקן | D7: עלות ליחידה כולל מע"מ | E7: סך עלות כולל מע"מ | G7: כמות מבוקשת עבור חדר בודד | H7: תקציב מבוקש | I7: הערות הגוף | K7: הפריט שנרכש | L7: מס' חשבונית מס | M7: תאריך חשבונית מס | N7: סכום כולל מע"מ
B8: ריהוט | G8: =B8 -> ריהוט | K8: =G8 -> ריהוט
B9: מזרונים טיפוליים | C9: 3 | D9: 300 | E9: =D9*C9 -> 900 | H9: =G9*D9 -> 0
B10: ארון אחסון | C10: 1 | D10: 3000 | E10: 3000 | H10: 0
B11: מדף אחסון לציוד גדול תלוי | C11: 1 | D11: 2000 | E11: 2000 | H11: 0
B12: כסא מתכוונן | C12: 1 | D12: 1500 | E12: 1500 | H12: 0
B13: כסא מטפל | C13: 1 | D13: 760 | E13: 760 | H13: 0
B14: לוח מחיק | C14: 1 | D14: 500 | E14: 500 | H14: 0
B15: מראה קבועה ווילון | C15: 1 | D15: 800 | E15: 800 | H15: 0
B16: שולחן מתכוונן חשמלי | C16: 1 | D16: 6000 | E16: 6000 | H16: 0
B17: סה"כ ריהוט כולל מע"מ | E17: =SUM(E9:E16) -> 15460 | H17: =SUM(H9:H16) -> 0 | I17: =B17 -> סה"כ ריהוט כולל מע"מ | K17: =B17 -> סה"כ ריהוט כולל מע"מ | N17: =SUM(N9:N16) -> 0
B18: ציוד | G18: =B18 -> ציוד | K18: =G18 -> ציוד
B19: נקודת תליה בתקרה, כולל התקנה | C19: 2 | D19: 500 | E19: 1000 | H19: =G19*D19 -> 0
B20: סקוטר למשקל של מבוגרים | C20: 2 | D20: 250 | E20: 500 | H20: 0
B21: חבית טיפולית | C21: 1 | D21: 1800 | E21: 1800 | H21: 0
B22: סט חמישה ספסלים | C22: 1 | D22: 800 | E22: 800 | H22: 0
B23: ערסל בד טיפולי | C23: 1 | D23: 200 | E23: 200 | H23: 0
B24: צלחת וסטיבולרית לבוגרים | C24: 1 | D24: 250 | E24: 250 | H24: 0
B25: כדורים (סכום גלובלי) | C25: 1 | D25: 500 | E25: 500 | H25: 0
B26: גלילים בגדלים שונים (סכום גלובלי) | C26: 1 | D26: 1500 | E26: 1500 | H26: 0
B27: וסט נאופרן | C27: 1 | D27: 450 | E27: 450 | H27: 0
B28: משחקי גריה שונים (סכום גלובלי) | C28: 1 | D28: 1000 | E28: 1000 | H28: 0
B29: עזרים לטיפול קבוצתי (טבעות, מטפחות, כדורים, מצנח וכד') (סכום גלובלי) | C29: 1 | D29: 3500 | E29: 3500 | H29: 0
B30: משחקי מרחב, בנייה והרכבה (סכום גלובלי) | C30: 1 | D30: 3000 | E30: 3000 | H30: 0
B31: פאזלים ומשחקי תפיסה (סכום גלובלי) | C31: 1 | D31: 2000 | E31: 2000 | H31: 0
B32: אביזרי ADL מותאמים (סכום גלובלי) | C32: 1 | D32: 1000 | E32: 1000 | H32: 0
B33: ציוד להכנת סדי ידיים | C33: 1 | D33: 3000 | E33: 3000 | H33: 0
B34: סה"כ ציוד כולל מע"מ | E34: =SUM(E19:E33) -> 20500 | H34: =SUM(H19:H33) -> 0 | I34: =B34 -> סה"כ ציוד כולל מע"מ | K34: =B34 -> סה"כ ציוד כולל מע"מ | N34: =SUM(N19:N33) -> 0
B35: טכנולוגיה | G35: =B35 -> טכנולוגיה | K35: =G35 -> טכנולוגיה
B36: מחשב נייח/נייד עם מסך מגע | C36: 1 | D36: 5000 | E36: 5000 | H36: =G36*D36 -> 0
B37: מדפסת | C37: 1 | D37: 1600 | E37: 1600 | H37: 0
B38: אייפד (1 ל 5 אנשים) Ipad 10.2" 128GB WIFI | C38: 1 | D38: 2800 | E38: 2800 | H38: 0
B39: תוכנות לאייפד | C39: 1 | D39: 5000 | E39: 5000 | H39: 0
B40: מגן לאייפד + מדבקת זכוכית | C40: 1 | D40: 450 | E40: 450 | H40: 0
B41: Apple tv | C41: 1 | D41: 900 | E41: 900 | H41: 0
B42: מסך הקרנה נגלל | C42: 1 | D42: 3800 | E42: 3800 | H42: 0
B43: מסך מגע כ- 65" לתלייה על קיר+ ארון + מחשב להפעלה, ניתן להשתמש גם בלוח חכם | C43: 1 | D43: 40000 | E43: 40000 | H43: =G43*D43 -> 0
B44: מערכת מציאות מדומה | C44: 1 | D44: 40000 | E44: 40000 | H44: 0
B45: עכברים ייחודיים | C45: 1 | D45: 2500 | E45: 2500 | H45: 0
B46: מקלדות ייחודיות | C46: 1 | D46: 1200 | E46: 1200 | H46: 0
B47: מתגים ומתאמי מתגים | C47: 1 | D47: 4500 | E47: 4500 | H47: 0
B48: זרועות למתגים ולטאבלט | C48: 1 | D48: 5000 | E48: 5000 | H48: 0
B49: צעצועים מותאמים - סכום גלובלי | C49: 1 | D49: 5000 | E49: 5000 | H49: 0
B50: סה"כ טכנולוגיה כולל מע"מ | E50: =SUM(E36:E49) -> 117750 | H50: =SUM(H36:H49) -> 0 | I50: =B50 -> סה"כ טכנולוגיה כולל מע"מ | K50: =B50 -> סה"כ טכנולוגיה כולל מע"מ | N50: =SUM(N36:N49) -> 0
B51: סה"כ ציוד ריפוי בעיסוק כולל מע"מ | E51: =E17+E34+E50 -> 153710 | H51: =H17+H34+H50 -> 0 | I51: =B51 -> סה"כ ציוד ריפוי בעיסוק כולל מע"מ | K51: =B51 -> סה"כ ציוד ריפוי בעיסוק כולל מע"מ | N51: =N17+N34+N50 -> 0

Sheet ז. קלינאות תקשורת
B1: ='ב. תוכן עניינים'!C20 -> קלינאות תקשורת | G1: שלב הגשת הבקשה: | K1: שלב הדיווח על ההוצאות:
B2: שם המסגרת : | C2: ='ג. שאלון למילוי מגיש הבקשה'!D24 -> 0 | G2: עליכם למלא גיליון ג' בטרם מילוי הגיליונות האחרים. | K2: לאחר אישור הבקשה יוחזר הגיליון עם הפריטים המאושרים
B3: סוג המסגרת : | C3: ='ג. שאלון למילוי מגיש הבקשה'!D26 -> נא לבחור מתוך הרשימה | G3: גיליונות ד' עד י"ב עליכם למלא רק עמודות הצבועות בירוק | K3: גיליונות ד' עד י"ב עליכם למלא רק עמודות הצבועות בוורוד
B4: מספר האנשים שעבורם מיועד הפרויקט : | C4: ='ג. שאלון למילוי מגיש הבקשה'!D42 -> 0 | G4: אין לגעת בתאים האחרים- תאים אלו יהיו נעולים | K4: אין לגעת בתאים האחרים- תאים אלו יהיו נעולים
B5: תקן ציוד | G5: בקשת הגוף | K5: דיווח לתשלום לאחר ביצוע
B6: פריטים | C6: כמות תקן | D6: עלות ליחידה כולל מע"מ | E6: סך עלות כולל מע"מ | G6: כמות מבוקשת עבור חדר בודד | H6: תקציב מבוקש | I6: הערות הגוף | K6: הפריט שנרכש | L6: מס' חשבונית מס | M6: תאריך חשבונית מס | N6: סכום כולל מע"מ
B7: מיחשוב | G7: =B7 -> מיחשוב | K7: =G7 -> מיחשוב
B8: מחשב נייח /נייד | C8: 1 | D8: 5000 | E8: =D8*C8 -> 5000 | H8: =G8*D8 -> 0
B9: מדפסת משולבת עם יישומי סריקה וצילום, פלט צבעוני | C9: 1 | D9: 1600 | E9: 1600 | H9: =G9*D9 -> 0
B10: מכשיר למינציה | C10: 1 | D10: 500 | E10: 500 | H10: =G10*D10 -> 0
B11: מחשב לוח (אייפד/טאבלט) | C11: 1 | D11: 2800 | E11: 2800 | H11: =G11*D11 -> 0
B12: אפליקציות למחשב לוח (אייפד/טאבלט) | C12: 1 | D12: 1200 | E12: 1200 | H12: =G12*D12 -> 0
B13: סה"כ מחשבים כולל מע"מ | E13: =SUM(E8:E12) -> 11100 | H13: =SUM(H8:H12) -> 0 | I13: =B13 -> סה"כ מחשבים כולל מע"מ | K13: =B13 -> סה"כ מחשבים כולל מע"מ | N13: =SUM(N8:N12) -> 0
B14: תקשורת תומכת וחליפית | G14: =B14 -> תקשורת תומכת וחליפית | K14: =G14 -> תקשורת תומכת וחליפית
B15: פלטים קוליים (סכום גלובלי) | C15: 1 | D15: 5000 | E15: 5000 | H15: =G15*D15 -> 0
B16: מתגים (סכום גלובלי) | C16: 1 | D16: 2000 | E16: 2000 | H16: 0
B17: אפליקציות לתקשורת תומכת חליפית (סכום גלובלי) | C17: 1 | D17: 2000 | E17: 2000 | H17: 0
B18: תוכנת גריד (סכום גלובלי) | C18: 1 | D18: 7000 | E18: 7000 | H18: =G18*D18 -> 0
B19: סה"כ תקשורת תומכת וחליפית כולל מע"מ | E19: =SUM(E15:E18) -> 16000 | H19: =SUM(H15:H18) -> 0 | I19: =B19 -> סה"כ תקשורת תומכת וחליפית כולל מע"מ | K19: =B19 -> סה"כ תקשורת תומכת וחליפית כולל מע"מ | N19: =SUM(N15:N18) -> 0
B20: תוכנות ומשחקים | G20: =B20 -> תוכנות ומשחקים | K20: =G20 -> תוכנות ומשחקים
B21: ציוד טיפולי, ספרים, כרטיסיות ומשחקי שפה ותקשורת | C21: 1 | D21: 3000 | E21: 3000 | H21: 0
B22: תוכנות תקשורת לאי-פד כמו sounding board, book creator,choice boards, snap scene ועוד, בהתאם למאפייני האוכלוסיה | C22: 1 | D22: 3000 | E22: 3000 | H22: 0
B23: אי פד | C23: =IF(C4<31,2,IF(C4<61,4,5)) -> 2 | D23: 2800 | E23: 5600 | H23: 0
B24: סה"כ תוכנות ומשחקים כולל מע"מ | E24: =SUM(E21:E23) -> 11600 | H24: =SUM(H21:H23) -> 0 | I24: =B24 -> סה"כ תוכנות ומשחקים כולל מע"מ | K24: =B24 -> סה"כ תוכנות ומשחקים כולל מע"מ | N24: =SUM(N21:N23) -> 0
B25: ריהוט | G25: =B25 -> ריהוט | K25: =G25 -> ריהוט
B26: ארון אחסון לציוד | C26: 1 | D26: 3000 | E26: 3000 | H26: =G26*D26 -> 0
B27: כסאות | C27: 2 | D27: 500 | E27: 1000 | H27: 0
B28: שולחנות | C28: 1 | D28: 1200 | E28: 1200 | H28: 0
B29: מראה ווילון | C29: 1 | D29: 800 | E29: 800 | H29: 0
B30: לוח מחיק | C30: 1 | D30: 500 | E30: 500 | H30: 0
B31: שטיח | C31: 1 | D31: 350 | E31: 350 | H31: 0
B32: סה"כ ריהוט כולל מע"מ | E32: =SUM(E26:E31) -> 6850 | H32: =SUM(H26:H31) -> 0 | I32: =B32 -> סה"כ ריהוט כולל מע"מ | K32: =B32 -> סה"כ ריהוט כולל מע"מ | N32: =SUM(N26:N31) -> 0
B33: סה"כ ציוד קלינאות תקשורת כולל מע"מ | E33: =E13+E19+E24+E32 -> 45550 | H33: =H13+H19+H24+H32 -> 0 | I33: =B33 -> סה"כ ציוד קלינאות תקשורת כולל מע"מ | K33: =B33 -> סה"כ ציוד קלינאות תקשורת כולל מע"מ | N33: =N13+N19+N24+N32 -> 0

Sheet ח. סנוזלן
B1: ='ב. תוכן עניינים'!C21 -> חדר סנוזלן | G1: שלב הגשת הבקשה: | K1: שלב הדיווח על ההוצאות:
B2: שם המסגרת | C2: ='ג. שאלון למילוי מגיש הבקשה'!D24 -> 0 | G2: עליכם למלא גיליון ג' בטרם מילוי הגיליונות האחרים. | K2: לאחר אישור הבקשה יוחזר הגיליון עם הפריטים המאושרים
B3: סוג המסגרת | C3: ='ג. שאלון למילוי מגיש הבקשה'!D26 -> נא לבחור מתוך הרשימה | G3: גיליונות ד' עד י"ב עליכם למלא רק עמודות הצבועות בירוק | K3: גיליונות ד' עד י"ב עליכם למלא רק עמודות הצבועות בכתום | N3: צבועות בוורוד
B4: מספר האנשים שעבורם מיועד הפרויקט | C4: ='ג. שאלון למילוי מגיש הבקשה'!D42 -> 0 | G4: אין לגעת בתאים האחרים- תאים אלו יהיו נעולים | K4: אין לגעת בתאים האחרים- תאים אלו יהיו נעולים
B5: תקן ציוד | G5: בקשת הגוף | K5: דיווח לתשלום לאחר ביצוע
B6: פריטים | C6: כמות תקן | D6: עלות ליחידה כולל מע"מ | E6: סך עלות כולל מע"מ | G6: כמות מבוקשת עבור חדר בודד | H6: תקציב מבוקש | I6: הערות הגוף | K6: הפריט שנרכש | L6: מס' חשבונית מס | M6: תאריך חשבונית מס | N6: סכום כולל מע"מ
B7: מנוף תקרה+ התקנה (לסיעודיים) | C7: 1 | D7: 25000 | E7: =D7*C7 -> 25000 | H7: =G7*D7 -> 0
B8: עמוד בועות | C8: 1 | D8: 13500 | E8: =D8*C8 -> 13500 | H8: =G8*D8 -> 0
B9: מראות מחוסמות | C9: 1 | D9: 1750 | E9: 1750 | H9: 0
B10: בסיס מרופד | C10: 1 | D10: 1200 | E10: 1200 | H10: 0
B11: פרוג'קטור | C11: 1 | D11: 5500 | E11: 5500 | H11: 0
B12: פופ | C12: 1 | D12: 850 | E12: 850 | H12: 0
B13: מערכת מוסיקה | C13: 1 | D13: 1600 | E13: 1600 | H13: 0
B14: ריפוד רצפה וקירות ל 20 מ"ר | C14: 20 | D14: 400 | E14: 8000 | H14: 0
B15: סיבים אופטיים | C15: 1 | D15: 6850 | E15: 6850 | H15: 0
B16: כדור מראות+מקרן | C16: 1 | D16: 1400 | E16: 1400 | H16: =G16*D16 -> 0
B17: נדנדה | C17: 1 | D17: 1000 | E17: 1000 | H17: 0
B18: מתרגם קול לאור | C18: 1 | D18: 9000 | E18: 9000 | H18: 0
B19: מתקן גירוי תגובה | C19: 1 | D19: 5500 | E19: 5500 | H19: 0
B20: אביזרי עיסוי | C20: 1 | D20: 2500 | E20: 2500 | H20: 0
B21: אביזרי גריה קטנים | C21: 1 | D21: 2500 | E21: 2500 | H21: 0
B22: ארון אחסון לעזרים | C22: 2 | D22: 3000 | E22: 6000 | H22: 0
B23: סה"כ ציוד חדר סנוזלן כולל מע"מ | E23: =SUM(E7:E22) -> 92150 | H23: =SUM(H7:H22) -> 0 | I23: =B23 -> סה"כ ציוד חדר סנוזלן כולל מע"מ | K23: =B23 -> סה"כ ציוד חדר סנוזלן כולל מע"מ | N23: =SUM(N7:N22) -> 0
B25: הערה:
B26: ציוד לחדר סנוזלן מותנה בהפעלת איש מקצוע שקיבל הכשרה בתחום. גודל חדר מינימאלי 20 מ"ר+ 5 מ"ר מבואה.

Sheet ט. מתקני חצר
B1: ='ב. תוכן עניינים'!C22 -> מתקני חצר | H1: שלב הגשת הבקשה: | L1: שלב הדיווח על ההוצאות:
B2: שם המסגרת : | C2: ='ג. שאלון למילוי מגיש הבקשה'!D24 -> 0 | H2: עליכם למלא גיליון ג' בטרם מילוי הגיליונות האחרים. | L2: לאחר אישור הבקשה יוחזר הגיליון עם הפריטים המאושרים
B3: סוג המסגרת : | C3: ='ג. שאלון למילוי מגיש הבקשה'!D26 -> נא לבחור מתוך הרשימה | H3: גיליונות ד' עד י"ב עליכם למלא רק עמודות הצבועות בירוק | L3: גיליונות ד' עד י"ב עליכם למלא רק עמודות הצבועות בוורוד | O3: בוורוד
B4: מספר האנשים שעבורם מיועד הפרויקט : | C4: ='ג. שאלון למילוי מגיש הבקשה'!D42 -> 0 | H4: אין לגעת בתאים האחרים- תאים אלו יהיו נעולים | L4: אין לגעת בתאים האחרים- תאים אלו יהיו נעולים
H5: בקשת הגוף | L5: דיווח לתשלום לאחר ביצוע
B6: מתקן | C6: תיאור | D6: כמות תקן למסגרת | E6: מחיר ליחידה | F6: תקציב מומלץ לפי תקן | H6: כמות מבוקשת | I6: תקציב מבוקש לקבוצה | J6: הערות הגוף | L6: הפריט שנרכש | M6: מס' חשבונית מס | N6: תאריך חשבונית מס | O6: סכום כולל מע"מ
B7: לחיצת חזה משיכה עליונה | C7: מתקן זוגי דחיקת חזה ומשיכה עליונה זוגי שתי מנחי פעילות אפשריות מנח יד אופקי ואנכי אימון שרירי חזה כלל השרירים כולל מדרכי רגל לקיבוע הגפיים | D7: 1 | E7: 18000 | F7: =D7*E7 -> 18000 | I7: =E7*H7 -> 0
B8: מתקן דחיקת כתפיים למשתמש | C8: מתקן דחיקת כתפיים לאימון שרירי הכתפים והיד הקדמית בלדחיקה מעלה לכיוון הכתף כולל ידיות לקימה וישיבה והנגשה לאוכלוסיות מיוחדות כולל מדרכי רגל לקיבוע הגפיים | D8: 1 | E8: 15000 | F8: =D8*E8 -> 15000 | I8: =E8*H8 -> 0
B9: מתקן פרפר חזה | C9: מתקן פרפר סגירה לאימון שרירי החזה ,בתוספת זוג ידיות אחיזה של מנחי פעילות של סגירה צרה וסגירה רחבה כולל משענות יד ומדרך רגל לקיבוע הגפיים | D9: 1 | E9: 15000 | F9: 15000 | I9: =E9*H9 -> 0
B10: מתקן פרפר הפוך | C10: מתקן פרפר פתיחה לאימון שרירי החזה, בתוספת ידיות אחיזה כולל משענות יד ומדרך רגל לקיבוע הגפיים | D10: 1 | E10: 15000 | F10: 15000 | I10: =E10*H10 -> 0
B11: מתקן מקבילי כנף לזוג משתמשים | C11: מקבילי כנף בשני גבהים ברוחב אופטימאלי לאימון יד אחורית מונגש לאוכלוסיות גבוהות ונמוכות | D11: 1 | E11: 10000 | F11: 10000 | I11: 0
B12: מתקן דחיקת רגליים לזוג משתמשים | C12: מתקן דחיקת ארבע ראשים ושרירי התאומים בישיבה – כולל מנגנון הבטחה ומעצור למניעת היפוך זרוע ומפתח קיצוני | D12: 1 | E12: 15000 | F12: 15000 | I12: 0
B13: מתקן סקי | C13: מתקן סקי לאימון אירובי פעילות ידיים רגליים בתנועה קדימה ואחורה כולל מעצור למניעת מפתח קיצוני | D13: 1 | E13: 10000 | F13: 10000 | I13: 0
B14: מתקן הליכה באוויר לזוג משתמשים | C14: מתקן הליכה באוויר לזוג לאימון אירובי אימון ופיתוח מיומניות הליכה ,הגמשת המפשעה תנועת רגליים קדימה ואחורה כולל מעצור למניעת מפתח קיצוני, עד 70 מעלות | D14: 1 | E14: 15000 | F14: 15000 | I14: 0
B15: מתקן חתירה בכורסא | C15: מתקן אירובי לפלג גוף עליון לאימון הגב והזרועות לאימון אירובי ,תנועת ידיות אחיזה קדימה ואחורה כולל מעצור למניעת מפתח קיצוני, עד 70 מעלות | D15: 1 | E15: 10000 | F15: 10000 | I15: 0
B16: ממתקן מאמן אגן שרירי בטן ישבן וירכיים בתנועת מטוטלת | C16: התקן לארבעה משתמשים כולל תחנות לכיפוף ברכיים ותנועת אגן, חיזוק מותניים בטן תחתונה והצרת היקפי מותן חיזוק ואימון ישבן יריכיים כולל מעצור למניעת מפתח קיצוני, עד 70 מעלות | D16: 1 | E16: 15000 | F16: 15000 | I16: 0
B17: מתקן אופני ידיים רגליים | C17: מתקן לאימון קואורדינציה ותיאום יד ורגל, ביצוע תנועות סיבוב אופני ידיים לחיזוק רצועות הכתפיים יחד עם ביצוע ודיווש רגליים לחיזוק רגליים, ירך וישבן כולל מנגנון התנגדות אופטימאלית נגיש לכלל האוכלוסיות | D17: 1 | E17: 10000 | F17: 10000 | I17: 0
B18: מתקן אימון פולי תחתון בתמיכת חזה | C18: מתקן פעילות ליד קדמית בצורת פעילות של משיכה תחתונה בתמיכת חזה, פעילות בישיבה זקופה 3 מנחי פעילות אפשריות מנח יד אופקי ואנכי אימון שרירי היד הקדמית ושרירי שכמות / גב כולל מדרכי רגל לקיבוע הגפיים | D18: 1 | E18: 12000 | F18: 12000 | I18: 0
B19: מתקן אופני ספיננג | C19: מתקן לאימון קואורדינציה ותיאום יד ורגל, ביצוע תנועות סיבוב אופני ידיים לחיזוק רצועות הכתפיים יחד עם ביצוע ודיווש רגליים לחיזוק רגליים, ירך וישבן כולל מנגנון התנגדות אופטימאלית. נגיש לכלל האוכלוסיות | D19: 1 | E19: 10000 | F19: 10000 | I19: 0
B20: מתקן דחיקת רגליים לארבע | C20: מתקן דחיקה לארבע אימון ארבע ראשים ושרירי התאומים בישיבה – כולל מנגנון הבטחה ומעצור למניעת היפוך זרוע ומפתח קיצוני | D20: 1 | E20: 18000 | F20: 18000 | I20: 0
B21: מתקן מתח –מקבילים וכורסת בטן | C21: מתקן לאימון פונקציונאלי אימון כושר חופשי מודולארי מעוגן באמצעות חובקים . ניתן לקבלו במספר צורות וגבהים בהתאם לגרישות לקוח וצורת האימון המבוקשת | D21: 1 | E21: 18000 | F21: 18000 | I21: 0
B22: נדנדה קן לציפור | C22: נדנדה קן לציפור | D22: 1 | E22: 15000 | F22: 15000 | I22: 0
B23: מתקני מוזיקה | C23: מתקני מוזיקה לחצר | D23: 1 | E23: 5000 | F23: 5000 | I23: 0
B24: כדורגל שולחן | C24: משחק כדורגל שולחן | D24: 1 | E24: 5000 | F24: 5000 | I24: 0
B25: הוקי אויר | C25: משחק הוקי | D25: 1 | E25: 5000 | F25: 5000 | I25: 0
B26: משטח גומי | C26: משטח גומי עלות למ"ר 1 | D26: =IF(D7<31,50,IF(D7<61,80,100)) -> 50 | E26: 300 | F26: 15000 | I26: 0
B27: סה"כ מתקני חצר (כולל מע"מ) | F27: =SUM(F7:F26) -> 251000 | I27: =SUM(I7:I26) -> 0 | J27: =B27 -> סה"כ מתקני חצר (כולל מע"מ) | L27: =J27 -> סה"כ מתקני חצר (כולל מע"מ) | O27: =SUM(O7:O26) -> 0
B29: הערות:
B30: האישור מותנה בהצגת תכנית העמדת המתקנים
B31: המתקנים מחויבים בתו תקן
B32: הסעיפים הנ"ל מציגים מתקנים לדוגמה.

Sheet י. פיזיותרפיה
B1: ='ב. תוכן עניינים'!C23 -> פיזיותרפיה | G1: שלב הגשת הבקשה: | K1: שלב הדיווח על ההוצאות:
B2: שם המסגרת : | C2: ='ג. שאלון למילוי מגיש הבקשה'!D24 -> 0 | G2: עליכם למלא גיליון ג' בטרם מילוי הגיליונות האחרים. | K2: לאחר אישור הבקשה יוחזר הגיליון עם הפריטים המאושרים
B3: סוג המסגרת : | C3: ='ג. שאלון למילוי מגיש הבקשה'!D26 -> נא לבחור מתוך הרשימה | G3: גיליונות ד' עד י"ב עליכם למלא רק עמודות הצבועות בירוק | K3: גיליונות ד' עד י"ב עליכם למלא רק עמודות הצבועות בכתום | M3: וורוד
B4: מספר האנשים שעבורם מיועד הפרויקט : | C4: ='ג. שאלון למילוי מגיש הבקשה'!D42 -> 0 | G4: אין לגעת בתאים האחרים- תאים אלו יהיו נעולים | K4: אין לגעת בתאים האחרים- תאים אלו יהיו נעולים
B5: תקן | G5: בקשת הגוף | K5: דיווח לתשלום לאחר ביצוע
B6: פריטים | C6: כמות תקן | D6: עלות ליחידה כולל מע"מ | E6: סך עלות כולל מע"מ | G6: כמות מבוקשת | H6: תקציב מבוקש | I6: הערות הגוף | K6: הפריט שנרכש | L6: מס' חשבונית מס | M6: תאריך חשבונית מס | N6: סכום כולל מע"מ
B7: ציוד כללי לחדר פיזיותרפיה
B8: בובט מיטת טיפול | C8: 1 | D8: 6500 | E8: =D8*C8 -> 6500 | H8: =G8*D8 -> 0
B9: כסא מטפל | C9: 1 | D9: 760 | E9: 760 | H9: 0
B10: סולם שבדי ותוספות | C10: 1 | D10: 2500 | E10: 2500 | H10: 0
B11: אחות אילמת | C11: 1 | D11: 450 | E11: 450 | H11: 0
B12: מקבילים | C12: 1 | D12: 4500 | E12: 4500 | H12: 0
B13: ארון איחסון | C13: 1 | D13: 3000 | E13: 3000 | H13: 0
B14: מחשוב | C14: 1 | D14: 5000 | E14: 5000 | H14: 0
B15: סה"כ ציוד לחדר פיזיותרפיה כולל מע"מ | E15: =SUM(E8:E14) -> 22710 | H15: =SUM(H8:H14) -> 0 | I15: =B15 -> סה"כ ציוד לחדר פיזיותרפיה כולל מע"מ | K15: =B15 -> סה"כ ציוד לחדר פיזיותרפיה כולל מע"מ | N15: =SUM(N8:N14) -> 0
B16: הושבת מיוחדת
B17: כיסא אקטיבי מיוחד קטן/בינוני | C17: 1 | D17: 14500 | E17: 14500 | H17: 0
B18: כיסא אקטיבי מיוחד גדול | C18: 1 | D18: 17550 | E18: 17550 | H18: 0
B19: סה"כ הושבה מיוחדת כולל מע"מ | E19: =SUM(E17:E18) -> 32050 | H19: =SUM(H17:H18) -> 0 | I19: =B19 -> סה"כ הושבה מיוחדת כולל מע"מ | K19: =B19 -> סה"כ הושבה מיוחדת כולל מע"מ | N19: =SUM(N17:N18) -> 0
B20: עמידונים
B21: עמידון קידמי כולל תמיכות | C21: 1 | D21: 16000 | E21: 16000 | H21: 0
B22: עמידון אחורי כולל תמיכות | C22: 1 | D22: 16000 | E22: 16000 | H22: 0
B23: מיטת טיל גדולה | C23: 1 | D23: 15000 | E23: 15000 | H23: 0
B24: עמידון גדול כולל תמיכות מרובות | C24: 1 | D24: 24000 | E24: 24000 | H24: 0
B25: ישיבה לעמידה עם תמיכות מרובות | C25: 1 | D25: 46000 | E25: 46000 | H25: 0
B26: סה"כ עלות עמודונים כולל מע"מ | E26: =SUM(E21:E25) -> 117000 | H26: =SUM(H21:H25) -> 0 | I26: =B26 -> סה"כ עלות עמודונים כולל מע"מ | K26: =B26 -> סה"כ עלות עמודונים כולל מע"מ | N26: =SUM(N21:N25) -> 0 | XFD26: =SUM(H26:XFC26) -> 0
B27: הליכונים
B28: הליכון קידמי פשוט | C28: 1 | D28: 200 | E28: 200 | H28: 0
B29: הליכון אחורי ק | C29: 1 | D29: 1400 | E29: 1400 | H29: 0
B30: הליכון אחורי ב | C30: 1 | D30: 1900 | E30: 1900 | H30: 0
B31: הליכון אחורי ג | C31: 1 | D31: 2000 | E31: 2000 | H31: 0
B32: הליכון אמות הדראולי | C32: 1 | D32: 3800 | E32: 3800 | H32: 0
B33: הליכון אמות רגיל | C33: 1 | D33: 800 | E33: 800 | H33: 0
B34: רולטור בסיסי | C34: 1 | D34: 500 | E34: 500 | H34: 0
B35: רולטור מיוחד תמיכות | C35: 1 | D35: 1800 | E35: 1800 | H35: 0
B36: הליכון פייסר | C36: 1 | D36: 18000 | E36: 18000 | H36: 0
B37: הליכון גרילו | C37: 1 | D37: 13000 | E37: 13000 | H37: 0
B38: הליכון אוכף | C38: 1 | D38: 11000 | E38: 11000 | H38: 0
B39: סה"כ עלות הליכונים כולל מע"מ | E39: =SUM(E28:E38) -> 54400 | H39: =SUM(H28:H38) -> 0 | I39: =B39 -> סה"כ עלות הליכונים כולל מע"מ | K39: =B39 -> סה"כ עלות הליכונים כולל מע"מ | N39: =SUM(N28:N38) -> 0
B40: מנופים וערסלים
B41: מנוף תקרה+ התקנה | C41: 1 | D41: 25000 | E41: 25000 | H41: 0
B42: מנוף רצפה | C42: 1 | D42: 14000 | E42: 14000 | H42: 0
B43: מנופי העמדה | C43: 1 | D43: 14000 | E43: 14000 | H43: 0
B44: ערסלים | C44: 1 | D44: 2000 | E44: 2000 | H44: 0
B45: תוספת לערסלים מיוחדים | C45: 1 | D45: 5500 | E45: 5500 | H45: 0
B46: סה"כ עלות מנופים וערסלים כולל מע"מ | E46: =SUM(E41:E45) -> 60500 | H46: =SUM(H41:H45) -> 0 | I46: =B46 -> סה"כ עלות מנופים וערסלים כולל מע"מ | K46: =B46 -> סה"כ עלות מנופים וערסלים כולל מע"מ | N46: =SUM(N41:N45) -> 0 | XFD46: =SUM(A46:XFC46) -> 60500
B47: מוטוריקה גסה
B48: נדנדות | C48: 1 | D48: 5000 | E48: 5000 | H48: 0
B49: גלילים | C49: 1 | D49: 3000 | E49: 3000 | H49: 0
B50: כדורים שונים | C50: 1 | D50: 1500 | E50: 1500 | H50: 0
B51: עזרים לפיתוח שיווי משקל | C51: 3 | D51: 500 | E51: 1500 | H51: 0
B52: מזרונים | C52: 1 | D52: 1500 | E52: 1500 | H52: 0
B53: אביזרי טיפוס | C53: 1 | D53: 3000 | E53: 3000 | H53: 0
B54: ערכות הפעלה | C54: 1 | D54: 2300 | E54: 2300 | H54: 0
B55: אביזרים לפעילות קבוצתית | C55: 1 | D55: 4000 | E55: 4000 | H55: 0
B56: משחקי גירוי תגובה | C56: 1 | D56: 3000 | E56: 3000 | H56: 0
B57: התקנות והתאמות | C57: 1 | D57: 1500 | E57: 1500 | H57: 0
B58: עזרי הפעלה ועוררות | C58: 1 | D58: 1200 | E58: 1200 | H58: =G58*D58 -> 0
B59: עזרי פעילות תנועתית | C59: 1 | D59: 3500 | E59: =D59*C59 -> 3500 | H59: 0
B60: כח וסיבולת | C60: 1 | D60: 1500 | E60: 1500 | H60: 0
B61: ארון אחסון לאביזרים הקטנים | C61: 1 | D61: 2000 | E61: 2000 | H61: 0
B62: מדף אחסון לכדורים וגלילים | C62: 1 | D62: 1700 | E62: 1700 | H62: 0
B63: סה"כ מוטוריקה גסה כולל מע"מ | E63: =SUM(E48:E62) -> 36200 | H63: =SUM(H48:H62) -> 0 | I63: =B63 -> סה"כ מוטוריקה גסה כולל מע"מ | K63: =B63 -> סה"כ מוטוריקה גסה כולל מע"מ | N63: =SUM(N48:N62) -> 0
B64: מכשירי כושר
B65: אופנים + טלויזיה | C65: 1 | D65: 5500 | E65: 5500 | H65: 0
B66: מדרגות ארוביות | C66: 1 | D66: 1500 | E66: 1500 | H66: 0
B67: בוסו | C67: 1 | D67: 1800 | E67: 1800 | H67: 0
B68: פולי | C68: 1 | D68: 6800 | E68: 6800 | H68: 0
B69: מעמד עם APT | C69: 1 | D69: 14000 | E69: 14000 | H69: 0
B70: אופנים עם משענת | C70: 1 | D70: 10500 | E70: 10500 | H70: 0
B71: אופני ידיים ורגליים מתכווננים | C71: 1 | D71: 27000 | E71: 27000 | H71: 0
B72: הליכון חשמלי | C72: 1 | D72: 23500 | E72: 23500 | H72: 0
B73: מתקן נשיאה | C73: 1 | D73: 14500 | E73: 14500 | H73: 0
B74: גומיות, כדורי כח ומשקוליות תקציב כולל | C74: 1 | D74: 1600 | E74: 1600 | H74: 0
B75: תלת אופן גדול | C75: 1 | D75: 12000 | E75: 12000 | H75: 0
B76: קסדות בגדלים ובצבעים שונים- תקציב כולל | C76: 1 | D76: 1700 | E76: 1700 | H76: 0
B77: תלת אופן קטן | C77: 1 | D77: 8500 | E77: 8500 | H77: 0
B78: תלת אופן רגיל | C78: 1 | D78: 400 | E78: 400 | H78: 0
B79: סה"כ מכשירים | E79: =SUM(E65:E78) -> 129300 | H79: =SUM(H65:H78) -> 0 | I79: =B79 -> סה"כ מכשירים | K79: =B79 -> סה"כ מכשירים | N79: =SUM(N65:N78) -> 0
B80: סה"כ ציוד פיזותרפיה כולל מע"מ | E80: =E15+E19+E26+E39+E46+E63+E79 -> 452160 | H80: =H15+H19+H26+H39+H46+H63+H79 -> 0 | I80: =B80 -> סה"כ ציוד פיזותרפיה כולל מע"מ | K80: =B80 -> סה"כ ציוד פיזותרפיה כולל מע"מ | N80: =N15+N19+N26+N39+N46+N63+N79 -> 0

Sheet יא. ציוד טיפולי-שיקומי
B1: ='ב. תוכן עניינים'!C24 -> ציוד טיפולי שיקומי | G1: שלב הגשת הבקשה: | K1: שלב הדיווח על ההוצאות:
B2: שם המסגרת : | C2: ='ג. שאלון למילוי מגיש הבקשה'!D24 -> 0 | G2: עליכם למלא גיליון ג' בטרם מילוי הגיליונות האחרים. | K2: לאחר אישור הבקשה יוחזר הגיליון עם הפריטים המאושרים
B3: סוג המסגרת : | C3: ='ג. שאלון למילוי מגיש הבקשה'!D26 -> נא לבחור מתוך הרשימה | G3: גיליונות ד' עד י"ב עליכם למלא רק עמודות הצבועות בירוק | K3: גיליונות ד' עד י"ב עליכם למלא רק עמודות הצבועות בכתום | N3: הצבועות בוורוד
B4: מספר האנשים שעבורם מיועד הפרויקט : | C4: ='ג. שאלון למילוי מגיש הבקשה'!D42 -> 0 | G4: אין לגעת בתאים האחרים- תאים אלו יהיו נעולים | K4: אין לגעת בתאים האחרים- תאים אלו יהיו נעולים
B5: תקן | G5: בקשת הגוף | K5: דיווח לתשלום לאחר ביצוע
B6: פריטים | C6: כמות תקן | D6: עלות ליחידה כולל מע"מ | E6: סך עלות כולל מע"מ | G6: כמות מבוקשת | H6: תקציב מבוקש | I6: הערות הגוף | K6: הפריט שנרכש | L6: מס' חשבונית מס | M6: תאריך חשבונית מס | N6: סכום כולל מע"מ
B7: מיטה סיעודית כולל מזרן רגיל | C7: 1 | D7: 7500 | E7: =D7*C7 -> 7500 | H7: =G7*D7 -> 0
B8: מזרן אויר דינאמי (מזרן נגד פצעי לחץ) | C8: 1 | D8: 5500 | E8: =D8*C8 -> 5500 | H8: 0
B9: כיסאות רחצה- סטנדרטי | C9: 1 | D9: 1700 | E9: 1700 | H9: 0
B10: כיסאות רחצה- טילט | C10: 1 | D10: 5000 | E10: 5000 | H10: 0
B11: כיסאות רחצה | C11: 1 | D11: 2500 | E11: 2500 | H11: 0
B12: אלונקת רחצה | C12: 1 | D12: 15500 | E12: 15500 | H12: 0
B13: מיטת החתלה כולל מזרן | C13: 1 | D13: 6500 | E13: 6500 | H13: 0
B14: כיסאות שירותים נייח | C14: 1 | D14: 500 | E14: 500 | H14: 0
B15: מאחזי יד (סכום גלובלי) | C15: 1 | D15: 500 | E15: 500 | H15: 0
B16: הגבהות לאסלה עם ידיות | C16: 1 | D16: 700 | E16: 700 | H16: 0
B17: סה"כ ציוד טיפולי שיקומי כולל מע"מ | E17: =SUM(E7:E16) -> 45900 | H17: =SUM(H7:H16) -> 0 | I17: =B17 -> סה"כ ציוד טיפולי שיקומי כולל מע"מ | K17: =B17 -> סה"כ ציוד טיפולי שיקומי כולל מע"מ | N17: =SUM(N7:N16) -> 0

Sheet יב. מטבח מחמם
B1: ='ב. תוכן עניינים'!C25 -> ציוד מטבח מחמם | C1: =IF('ג. שאלון למילוי מגיש הבקשה'!$D$46="כן","התקבל מימון ביטוח לאומי, אסור לבקש מימון כפול","") ->  | G1: שלב הגשת הבקשה: | K1: שלב הדיווח על ההוצאות:
B2: שם המסגרת : | C2: ='ג. שאלון למילוי מגיש הבקשה'!D24 -> 0 | G2: עליכם למלא גיליון ג' בטרם מילוי הגיליונות האחרים. | K2: לאחר אישור הבקשה יוחזר הגיליון עם הפריטים המאושרים | L2: לאחר אישור הבקשה יוחזר הגיליון עם הפריטים המאושרים | M2: לאחר אישור הבקשה יוחזר הגיליון עם הפריטים המאושרים
B3: סוג המסגרת : | C3: ='ג. שאלון למילוי מגיש הבקשה'!D26 -> נא לבחור מתוך הרשימה | G3: גיליונות ד' עד י"ב עליכם למלא רק עמודות הצבועות בירוק | K3: גיליונות ד' עד י"ב עליכם למלא רק עמודות הצבועות בכתום | N3: צבועות בוורוד
B4: מספר האנשים שעבורם מיועד הפרויקט : | C4: ='ג. שאלון למילוי מגיש הבקשה'!D42 -> 0 | G4: אין לגעת בתאים האחרים- תאים אלו יהיו נעולים | K4: אין לגעת בתאים האחרים- תאים אלו יהיו נעולים
B5: תקן | G5: בקשת הגוף | K5: דיווח לתשלום לאחר ביצוע
B6: פריטים: יש לבחור ציוד מסוג אחד בלבד - מחמם או מבשל | C6: כמות תקן | D6: עלות ליחידה כולל מע"מ | E6: סך עלות כולל מע"מ | G6: כמות מבוקשת | H6: תקציב מבוקש | I6: הערות הגוף | K6: הפריט שנרכש | L6: מס' חשבונית מס | M6: תאריך חשבונית מס | N6: סכום כולל מע"מ
B7: כיריים חשמליות | C7: 1 | D7: =IF($C$4<31,5000,IF($C$4<61,8000,15000)) -> 5000 | E7: =D7*C7 -> 5000 | F7: =IF(C$1="","","אסור להזמין") ->  | H7: =G7*D7 -> 0
B8: תנור אפיה וחימום – 2 תאים-חלבי / בשרי | C8: 1 | D8: =IF($C$4<31,5000,IF($C$4<61,8000,15000)) -> 5000 | E8: 5000 | H8: 0
B9: תנור קומביסטימר + מנדף | C9: 1 | D9: =IF($C$4<31,25000,IF($C$4<61,35000,50000)) -> 25000 | E9: 25000 | H9: 0
B10: מקרר ביתי / תעשייתי | C10: 1 | D10: =IF($C$4<31,10000,IF($C$4<61,15000,25000)) -> 10000 | E10: 10000 | H10: 0
B11: מקפיא | C11: 1 | D11: 4000 | E11: 4000 | H11: 0
B12: מדיח כלים חצי תעשייתי / תעשייתי + מרכך מים | C12: 1 | D12: =IF($C$4<31,12000,IF($C$4<61,18000,30000)) -> 12000 | E12: 12000 | H12: 0
B13: מעבד מזון מקצועי | C13: 1 | D13: 4000 | E13: 4000 | H13: 0
B14: מקסר / בלנדר - בייתי / תעשייתי | C14: 1 | D14: =IF($C$4<31,3000,IF($C$4<61,5000,9000)) -> 3000 | E14: 3000 | H14: 0
B15: מיקרוגל | C15: 1 | D15: 3000 | E15: 3000 | H15: 0
B16: מתקן מים | C16: =IF($C$4<31,1,IF($C$4<61,2,3)) -> 1 | D16: 3500 | E16: 3500 | H16: 0
B17: עגלת הגשה | C17: =IF($C$4<31,1,IF($C$4<61,2,3)) -> 1 | D17: 2000 | E17: 2000 | H17: 0
B18: מחם אוטומטי 6 / 10ל' | C18: 1 | D18: =IF($C$4<31,2000,IF($C$4<61,2500,3500)) -> 2000 | E18: 2000 | H18: 0
B19: עגלת חימום / קרור | C19: =IF($C$4<31,1,IF($C$4<61,2,3)) -> 1 | D19: 15000 | E19: 15000 | H19: 0
B20: כלי מטבח | C20: 1 | D20: =C4*200 -> 0 | E20: 0 | H20: 0
B21: ארון מדפים פתוחים | C21: =IF($C$4<31,1,IF($C$4<61,2,3)) -> 1 | D21: 4000 | E21: 4000 | H21: 0
B22: סה"כ ציוד מטבח מחמם - כולל מע"מ | E22: =SUM(E7:E21) -> 97500 | H22: =SUM(H7:H21) -> 0 | I22: =B22 -> סה"כ ציוד מטבח מחמם - כולל מע"מ | K22: =B22 -> סה"כ ציוד מטבח מחמם - כולל מע"מ | N22: =SUM(N7:N21) -> 0

Sheet יג. מטבח מבשל
B1: ='ב. תוכן עניינים'!C26 -> ציוד מטבח מבשל | C1: =IF('ג. שאלון למילוי מגיש הבקשה'!$D$46="כן","התקבל מימון ביטוח לאומי, אסור לבקש מימון כפול","") ->  | G1: שלב הגשת הבקשה: | K1: שלב הדיווח על ההוצאות:
B2: שם המסגרת : | C2: ='ג. שאלון למילוי מגיש הבקשה'!D24 -> 0 | G2: עליכם למלא גיליון ג' בטרם מילוי הגיליונות האחרים. | K2: לאחר אישור הבקשה יוחזר הגיליון עם הפריטים המאושרים | L2: לאחר אישור הבקשה יוחזר הגיליון עם הפריטים המאושרים | M2: לאחר אישור הבקשה יוחזר הגיליון עם הפריטים המאושרים
B3: סוג המסגרת : | C3: ='ג. שאלון למילוי מגיש הבקשה'!D26 -> נא לבחור מתוך הרשימה | G3: גיליונות ד' עד י"ב עליכם למלא רק עמודות הצבועות בירוק | K3: גיליונות ד' עד י"ב עליכם למלא רק עמודות הצבועות בכתום | N3: צבועות בוורוד
B4: מספר האנשים שעבורם מיועד הפרויקט : | C4: ='ג. שאלון למילוי מגיש הבקשה'!D42 -> 0 | G4: אין לגעת בתאים האחרים- תאים אלו יהיו נעולים | K4: אין לגעת בתאים האחרים- תאים אלו יהיו נעולים
B5: תקן | G5: בקשת הגוף | K5: דיווח לתשלום לאחר ביצוע
B6: פריטים: יש לבחור ציוד מסוג אחד בלבד - מחמם או מבשל | C6: כמות תקן | D6: עלות ליחידה כולל מע"מ | E6: סך עלות כולל מע"מ | G6: כמות מבוקשת | H6: תקציב מבוקש | I6: הערות הגוף | K6: הפריט שנרכש | L6: מס' חשבונית מס | M6: תאריך חשבונית מס | N6: סכום כולל מע"מ
B7: מקרר ארון חד רוחבי | C7: 3 | D7: 10000 | E7: =D7*C7 -> 30000 | F7: =IF(C$1="","","אסור להזמין") ->  | H7: =G7*D7 -> 0
B8: מקפיא ארון חד רוחבי | C8: 2 | D8: 10000 | E8: 20000 | H8: 0
B9: מקרר דלפק | C9: 1 | D9: 10000 | E9: 10000 | H9: 0
B10: שולחן כניסה ויציאה למדיח כלים | C10: 1 | D10: 8000 | E10: 8000 | H10: 0
B11: מדיח כלים חצי תעשייתי / תעשייתי | C11: 1 | D11: =IF($C$4<31,12000,IF($C$4<61,18000,30000)) -> 12000 | E11: 12000 | H11: 0
B12: כיריים חשמליות / גז 6 להבות | C12: 1 | D12: =IF($C$4<31,8000,IF($C$4<61,15000,25000)) -> 8000 | E12: 8000 | H12: 0
B13: תנור קומביסטימר | C13: 1 | D13: =IF($C$4<31,25000,IF($C$4<61,35000,50000)) -> 25000 | E13: 25000 | H13: 0
B14: מקסר / בלנדר - בייתי / תעשייתי | C14: 1 | D14: =IF($C$4<31,3000,IF($C$4<61,5000,9000)) -> 3000 | E14: 3000 | H14: 0
B15: קוצץ ירקות שולחני | C15: 1 | D15: 6500 | E15: 6500 | H15: 0
B16: מעבד מזון תעשייתי | C16: 1 | D16: 8000 | E16: 8000 | H16: 0
B17: משטחי עבודה | C17: 4 | D17: 2000 | E17: 8000 | H17: 0
B18: שולחן כיור | C18: 3 | D18: 5000 | E18: 15000 | H18: 0
B19: מיקרוגל לעומס בינוני | C19: 1 | D19: 3000 | E19: 3000 | H19: 0
B20: מחבת מתהפך 50 ליטר | C20: 1 | D20: 22000 | E20: 22000 | H20: 0
B21: ארון חימום תחתון/ מעמד לתנור | C21: 1 | D21: 10000 | E21: 10000 | H21: 0
B22: סוללה עם מתז עליון על שולחן | C22: 2 | D22: 2000 | E22: 4000 | H22: 0
B23: ברז שולחני עם פיה מסתובבת לכיור עבודה | C23: 4 | D23: 500 | E23: 2000 | H23: 0
B24: מדף עליון כפול | C24: 4 | D24: 2000 | E24: 8000 | H24: 0
B25: מתלה ייבוש לצלחות עם מדף לספלים | C25: 2 | D25: 1500 | E25: 3000 | H25: 0
B26: עגלת הגשה | C26: =IF($C$4<31,1,IF($C$4<61,2,3)) -> 1 | D26: 2000 | E26: 2000 | H26: 0
B27: עגלה עם מיכל אשפה 80 ליטר | C27: 3 | D27: 700 | E27: 2100 | H27: 0
B28: עגלת חימום / קרור | C28: =IF($C$4<31,1,IF($C$4<61,2,3)) -> 1 | D28: 15000 | E28: 15000 | H28: 0
B29: מיחם אוטומטי 25 ליטר | C29: 1 | D29: 5000 | E29: 5000 | H29: 0
B30: כלי מטבח | C30: 1 | D30: =400*C4 -> 0 | E30: 0 | H30: 0
B31: ארון אחסון יבש | C31: 2 | D31: 4000 | E31: 8000 | H31: 0
B32: סה"כ ציוד מטבח מבשל - כולל מע"מ | E32: =SUM(E7:E31) -> 237600 | H32: =SUM(H7:H31) -> 0 | I32: =B32 -> סה"כ ציוד מטבח מבשל - כולל מע"מ | K32: =B32 -> סה"כ ציוד מטבח מבשל - כולל מע"מ | N32: =SUM(N7:N31) -> 0

Sheet יד. ציוד פעילות גופנית- זוזו
B1: ='ב. תוכן עניינים'!C27 -> ציוד פעילות גופנית- זוזו | H1: שלב הגשת בקשת הגוף: | L1: שלב הדיווח לתשלום לאחר ביצוע:
B2: ='[1] ד. ציוד כללי'!B2 -> שם המסגרת | E2: ='ג. שאלון למילוי מגיש הבקשה'!D24 -> 0 | H2: יש למלא גיליון ג' בטרם מילוי הגיליונות האחרים. | L2: לאחר אישור הבקשה יוחזר הגיליון עם הפריטים המאושרים
B3: ='[1] ד. ציוד כללי'!B3 -> סוג המסגרת | E3: ='ג. שאלון למילוי מגיש הבקשה'!D26 -> נא לבחור מתוך הרשימה | H3: גיליונות ד' עד ח' -יש למלא רק עמודות הצבועות בירוק | L3: גיליונות ד' עד ח' יש למלא רק עמודות הצבועות בכתום/ורוד
B4: ='[1] ד. ציוד כללי'!B4 -> מספר האנשים שעבורם מיועד הפרויקט | E4: ='ג. שאלון למילוי מגיש הבקשה'!D42 -> 0 | H4: אין לגעת בתאים האחרים- תאים אלו יהיו נעולים | L4: אין לגעת בתאים האחרים- תאים אלו יהיו נעולים
B5: תקן | H5: בקשת הגוף | L5: דיווח לתשלום
B6: פריטים | C6: תיאור | D6: כמות תקן למסגרת | E6: מחיר ליחידה | F6: תקציב מומלץ לפי תקן | H6: כמות מבוקשת | I6: תקציב מבוקש לקבוצה | J6: הערות הגוף | L6: הפריט שנרכש | M6: מס' חשבונית מס | N6: תאריך חשבונית מס | O6: סכום כולל מע"מ
B7: ציוד עזר | C7: טלויזיה 65' + מסך הגנה | D7: 1 | E7: 4500 | F7: =D7*E7 -> 4500 | I7: =E7*H7 -> 0
C8: מתקן תליה לטלוויזיה | D8: 1 | E8: 250 | F8: =D8*E8 -> 250 | I8: =E8*H8 -> 0
C9: ארון איחסון הציוד | D9: 1 | E9: 3000 | F9: 3000 | I9: 0
C10: רולאפ/שילוט של המיזם (לינק ללוגו) | D10: 1 | E10: 1600 | F10: 1600 | I10: 0
B11: ציוד ספורט | C11: טבעות פילאטיס | D11: 10 | E11: 130 | F11: 1300 | I11: 0
C12: מזרן פילאטיס | D12: 10 | E12: 100 | F12: 1000 | I12: 0
C13: מוט אימון פילאטיס | D13: 10 | E13: 100 | F13: 1000 | I13: 0
C14: גומיית פילאטיס | D14: 10 | E14: 100 | F14: 1000 | I14: 0
C15: כדור over ball | D15: 10 | E15: 100 | F15: 1000 | I15: 0
C16: כרית שעועית | D16: 10 | E16: 100 | F16: 1000 | I16: 0
C17: חולצות עם לוגו הפרויקט (לינק ללוגו) | D17: =E4 -> 0 | E17: 70 | F17: 0 | I17: 0
B18: סה"כ ציוד פעילות ספורט (כולל מע"מ) | F18: =SUM(F7:F17) -> 15650 | I18: =SUM(I7:I17) -> 0 | J18: =B18 -> סה"כ ציוד פעילות ספורט (כולל מע"מ) | L18: =J18 -> סה"כ ציוד פעילות ספורט (כולל מע"מ) | O18: =SUM(O7:O17) -> 0
B20: הערה:
B21: קיצור דרך לאתר הפרויקט

Sheet טו. ציוד צוות
B1: ='ב. תוכן עניינים'!C28 -> ציוד לצוות | G1: שלב הגשת הבקשה: | K1: שלב הדיווח על ההוצאות:
B2: שם המסגרת : | C2: ='ג. שאלון למילוי מגיש הבקשה'!D24 -> 0 | G2: עליכם למלא גיליון ג' בטרם מילוי הגיליונות האחרים. | K2: לאחר אישור הבקשה יוחזר הגיליון עם הפריטים המאושרים
B3: : מס' אנשי צוות | C3: =$C$37 -> 0 | G3: גיליונות ד' עד י"ב עליכם למלא רק עמודות הצבועות בירוק | K3: גליונות ד'-י"ב עליכם למלא רק בעמודות הצבועות בוורוד
G4: אין לגעת בתאים האחרים- תאים אלו יהיו נעולים | K4: אין לגעת בתאים האחרים- תאים אלו יהיו נעולים
B5: תקן | G5: בקשת הגוף | K5: דיווח לתשלום לאחר ביצוע
B6: פריטים | C6: כמות תקן | D6: עלות ליחידה כולל מע"מ | E6: סך עלות כולל מע"מ | G6: כמות מבוקשת | H6: תקציב מבוקש | I6: הערות הגוף | K6: הפריט שנרכש | L6: מס' חשבונית מס | M6: תאריך חשבונית מס | N6: סכום כולל מע"מ
B7: כיסא אישי | C7: =$C$3 -> 0 | D7: 1200 | E7: =D7*C7 -> 0 | H7: =G7*D7 -> 0
B8: שולחן מגירה | C8: =$C$3 -> 0 | D8: 2000 | E8: 0 | H8: 0
B9: עמדת מחשב | C9: =$C$3 -> 0 | D9: 1200 | E9: 0 | H9: 0
B10: מחשב+תוכנות | C10: =$C$3 -> 0 | D10: 5000 | E10: 0 | H10: 0
B11: כיסא אורחים | C11: =$C$3 -> 0 | D11: 1000 | E11: 0 | H11: 0
B12: ארון | C12: =ROUNDUP($C$3/4,0) -> 0 | D12: 3000 | E12: 0 | H12: 0
B13: ציוד תקשורת ומולטימדיה | C13: =ROUNDUP($C$3*0.3,0) -> 0 | D13: 1000 | E13: 0 | H13: 0
B14: אביזרי עיצוב | C14: 1 | D14: 2000 | E14: 2000 | H14: 0
B15: סה"כ ציוד צוות כולל מע"מ | E15: =SUM(E7:E14) -> 2000 | H15: =SUM(H7:H14) -> 0 | I15: =B15 -> סה"כ ציוד צוות כולל מע"מ | K15: =B15 -> סה"כ ציוד צוות כולל מע"מ | N15: =SUM(N7:N14) -> 0
B17: טבלת עזר לאנשי הצוות
B18: פירוט תפקיד | C18: מס' אנשים
B37: סה"כ אנשי צוות במסגרת | C37: =SUM(C19:C36) -> 0

Sheet טז. ציוד נוסף
B1: ='ב. תוכן עניינים'!C29 -> ציוד נוסף | K1: שלב הגשת הבקשה: | O1: שלב הדיווח על ההוצאות:
B2: ציוד נוסף/משלים ניתן להכניס בטבלה זאת יש להציג 2 הצעות מחיר ולציין בטורים K-L את ההצעה המועדפת. | K2: עליכם למלא גיליון ג' בטרם מילוי הגיליונות האחרים. | O2: לאחר אישור הבקשה יוחזר הגיליון עם הפריטים המאושרים
B3: שם המסגרת | D3: ='ג. שאלון למילוי מגיש הבקשה'!D24 -> 0 | K3: גיליונות ד' עד י"ב עליכם למלא רק עמודות הצבועות בירוק | O3: גיליונות ד' עד י"ב עליכם למלא רק עמודות הצבועות בוורוד
B4: סוג המסגרת | D4: ='ג. שאלון למילוי מגיש הבקשה'!D26 -> נא לבחור מתוך הרשימה | K4: אין לגעת בתאים האחרים- תאים אלו יהיו נעולים | O4: אין לגעת בתאים האחרים- תאים אלו יהיו נעולים
B5: מספר האנשים שעבורם מיועד הפרויקט | D5: ='ג. שאלון למילוי מגיש הבקשה'!D42 -> 0
B6: ציוד נוסף | E6: הצעה ראשונה | H6: הצעה שניה | K6: הצעה מועדפת | O6: דיווח לתשלום לאחר ביצוע
B7: תאור הציוד | C7: יעוד הציוד | D7: כמות מבוקשת | E7: הספק 1 | F7: מחיר ליחידה | G7: סכום | H7: שם הספק 2 | I7: מחיר ליחידה | J7: סכום | K7: הספק המועדף | L7: מחיר ליחידה | M7: סכום | O7: הפריט שנרכש | P7: מס' חשבונית מס | Q7: תאריך חשבונית מס | R7: סכום כולל מע"מ
G8: =D8*F8 -> 0 | J8: =$D8*I8 -> 0 | M8: =D8*L8 -> 0
G9: 0 | J9: =$D9*I9 -> 0 | M9: =D9*L9 -> 0
G10: 0 | J10: 0 | M10: 0
G11: 0 | J11: 0 | M11: 0
G12: 0 | J12: 0 | M12: 0
G13: 0 | J13: 0 | M13: 0
G14: 0 | J14: 0 | M14: 0
G15: 0 | J15: 0 | M15: 0
G16: 0 | J16: 0 | M16: 0
G17: 0 | J17: 0 | M17: 0
G18: 0 | J18: 0 | M18: 0
G19: 0 | J19: 0 | M19: 0
G20: 0 | J20: 0 | M20: 0
G21: 0 | J21: 0 | M21: 0
G22: 0 | J22: 0 | M22: 0
G23: 0 | J23: 0 | M23: 0
G24: 0 | J24: 0 | M24: 0
G25: 0 | J25: 0 | M25: 0
G26: 0 | J26: 0 | M26: 0
G27: 0 | J27: 0 | M27: 0
G28: 0 | J28: 0 | M28: 0
B29: סה"כ ציוד נוסף כולל מע"מ | G29: =SUM(G8:G28) -> 0 | J29: =SUM(J8:J28) -> 0 | M29: =SUM(M8:M28) -> 0 | O29: =B29 -> סה"כ ציוד נוסף כולל מע"מ | R29: =SUM(R8:R28) -> 0

Sheet יח. סיכום
B8: תקן ציוד למרכזי יום טיפוליים סיעודיים ו/או תעסוקה
B9: ציוד פרא רפואי, חדר סנוזלן, ציוד למטבח מבשל וציוד לצוות.
B11: דוח ביצוע מסכם
B13: הנחיות לקבלת תשלום :
B14: יש למלא את ההוצאות בפועל בכל אחד מהגיליונות הרלבנטיים הקודמים. הסכומים יעודכנו אוטומטית בגיליון זה.
B15: יש לשלוח את הקובץ הזה במלואו לדוא"ל המצויין מטה.
B16: יש להדפיס עמוד זה ולהחתים כנדרש.
B17: בנוסף יש לצרף :
B18: צילומי חשבוניות מס / קבלות או כרטסת חתומה ע"י רו"ח של ארגון מפעיל/ גזבר הרשות
B19: את הדיווחים לתשלום ואת הקובץ במלואו יש לשלוח לדוא"ל : limor@kshalem.org.il
B20: באחריות השולח לוודא כי המסמכים הגיעו ליעדם.
B22: ='ג. שאלון למילוי מגיש הבקשה'!C24 -> שם המסגרת | C22: ='ג. שאלון למילוי מגיש הבקשה'!D24 -> 0
B23: ='ג. שאלון למילוי מגיש הבקשה'!C26 -> סוג המסגרת | C23: ='ג. שאלון למילוי מגיש הבקשה'!D26 -> נא לבחור מתוך הרשימה
B24: ='ג. שאלון למילוי מגיש הבקשה'!C42 -> מספר האנשים שעבורם מיועד הפרויקט | C24: ='ג. שאלון למילוי מגיש הבקשה'!D42 -> 0
B26: ציוד עפ"י נושאים | C26: סכום מבוקש | D26: סכום שבוצע בפועל
B27: ='ב. תוכן עניינים'!C17 -> ציוד כללי למתחם | C27: ='ד. ציוד כללי למתחם'!H47 -> 0 | D27: ='ד. ציוד כללי למתחם'!N47 -> 0
B28: ='ב. תוכן עניינים'!C18 -> ציוד חדרי קבוצות | C28: ='ה. ציוד חדרי קבוצות'!H38 -> 0 | D28: ='ה. ציוד חדרי קבוצות'!N38 -> 0
B29: ='ב. תוכן עניינים'!C19 -> ריפוי בעיסוק | C29: ='ו. ריפוי בעיסוק'!H51 -> 0 | D29: ='ו. ריפוי בעיסוק'!N51 -> 0
B30: ='ב. תוכן עניינים'!C20 -> קלינאות תקשורת | C30: ='ז. קלינאות תקשורת'!H33 -> 0 | D30: ='ז. קלינאות תקשורת'!N33 -> 0
B31: ='ב. תוכן עניינים'!C21 -> חדר סנוזלן | C31: ='ח. סנוזלן'!H23 -> 0 | D31: ='ח. סנוזלן'!N23 -> 0
B32: ='ב. תוכן עניינים'!C22 -> מתקני חצר | C32: ='ט. מתקני חצר '!I27 -> 0 | D32: ='ט. מתקני חצר '!O27 -> 0
B33: ='ב. תוכן עניינים'!C23 -> פיזיותרפיה | C33: ='י. פיזיותרפיה'!H80 -> 0 | D33: ='י. פיזיותרפיה'!N80 -> 0
B34: ='ב. תוכן עניינים'!C24 -> ציוד טיפולי שיקומי | C34: ='יא. ציוד טיפולי-שיקומי'!H17 -> 0 | D34: ='יא. ציוד טיפולי-שיקומי'!N17 -> 0
B35: ='ב. תוכן עניינים'!C25 -> ציוד מטבח מחמם | C35: ='יב. מטבח מחמם'!H22 -> 0 | D35: ='יב. מטבח מחמם'!N22 -> 0 | F35: =IF(OR(C35=0,C36=0)=TRUE,"","יש לבחור ציוד מסוג אחד בלבד - מחמם או מבשל") -> 
B36: ='ב. תוכן עניינים'!C26 -> ציוד מטבח מבשל | C36: ='יג. מטבח מבשל'!H32 -> 0 | D36: ='יג. מטבח מבשל'!N32 -> 0 | F36: =IF(OR(C35=0,C36=0)=TRUE,"","יש לבחור ציוד מסוג אחד בלבד - מחמם או מבשל") -> 
B37: ='ב. תוכן עניינים'!C27 -> ציוד פעילות גופנית- זוזו | C37: ='יד. ציוד פעילות גופנית- זוזו'!I18 -> 0 | D37: ='יד. ציוד פעילות גופנית- זוזו'!O18 -> 0
B38: ='ב. תוכן עניינים'!C28 -> ציוד לצוות | C38: ='טו. ציוד צוות'!H15 -> 0 | D38: ='טו. ציוד צוות'!N15 -> 0
B39: ='ב. תוכן עניינים'!C29 -> ציוד נוסף | C39: ='טז. ציוד נוסף'!M29 -> 0 | D39: ='טז. ציוד נוסף'!R29 -> 0
B40: סה"כ בקשה כולל מע"מ | C40: =SUM(C27:C39) -> 0 | D40: =SUM(D27:D39) -> 0
B42: מספר פרוייקט קרן שלם
B44: חתימה וחותמת גזבר/רו"ח
B46: תאריך

Sheet סיכום מפורט (לשימוש משרדי)
A1: ='ב. תוכן עניינים'!C31 -> סיכום מפורט (לשימוש משרדי)
A2: מספר מק"ט | B2: ='יח. סיכום'!C42 -> 0
A3: ='ג. שאלון למילוי מגיש הבקשה'!C24 -> שם המסגרת | B3: ='ג. שאלון למילוי מגיש הבקשה'!D24 -> 0
A4: ='ג. שאלון למילוי מגיש הבקשה'!C26 -> סוג המסגרת | B4: ='ג. שאלון למילוי מגיש הבקשה'!D26 -> נא לבחור מתוך הרשימה
A5: ='ג. שאלון למילוי מגיש הבקשה'!C42 -> מספר האנשים שעבורם מיועד הפרויקט | B5: ='ג. שאלון למילוי מגיש הבקשה'!D42 -> 0
B6: בקשה / אישור | E6: דיווח לתשלום
A7: תיאור | B7: כמות מבוקשת | C7: תקציב מבוקש לקבוצה | E7: הפריט שנרכש | F7: מס' חשבונית מס | G7: תאריך חשבונית מס | H7: סכום כולל מע"מ
A8: ='יח. סיכום'!B27 -> ציוד כללי למתחם | E8: =A8 -> ציוד כללי למתחם
A9: ='ד. ציוד כללי למתחם'!B9 -> רמה א' - סט ציוד לסדנאות: קרמיקה/ נגרות/ מחשבים ומולטימדיה | B9: ='ד. ציוד כללי למתחם'!G9 -> 0 | C9: ='ד. ציוד כללי למתחם'!H9 -> 0 | E9: ='ד. ציוד כללי למתחם'!K9 -> 0 | F9: ='ד. ציוד כללי למתחם'!L9 -> 0 | G9: =IF(F9=0,"",'ד. ציוד כללי למתחם'!M9) ->  | H9: ='ד. ציוד כללי למתחם'!N9 -> 0
A10: ='ד. ציוד כללי למתחם'!B10 -> רמה ב' - סט ציוד לסדנאות: גינון עם אדניות מוגבהות/ מוזיקה/ בישול/ אפיה/ בית קפה | B10: ='ד. ציוד כללי למתחם'!G10 -> 0 | C10: ='ד. ציוד כללי למתחם'!H10 -> 0 | E10: ='ד. ציוד כללי למתחם'!K10 -> 0 | F10: ='ד. ציוד כללי למתחם'!L10 -> 0 | G10: =IF(F10=0,"",'ד. ציוד כללי למתחם'!M10) ->  | H10: ='ד. ציוד כללי למתחם'!N10 -> 0
A11: ='ד. ציוד כללי למתחם'!B13 -> פינת ישיבה ללובי | B11: ='ד. ציוד כללי למתחם'!G13 -> 0 | C11: ='ד. ציוד כללי למתחם'!H13 -> 0 | E11: ='ד. ציוד כללי למתחם'!K13 -> 0 | F11: ='ד. ציוד כללי למתחם'!L13 -> 0 | G11: =IF(F11=0,"",'ד. ציוד כללי למתחם'!M13) ->  | H11: ='ד. ציוד כללי למתחם'!N13 -> 0
A12: ='ד. ציוד כללי למתחם'!B14 -> ציוד מחסן - מדפים | B12: ='ד. ציוד כללי למתחם'!G14 -> 0 | C12: ='ד. ציוד כללי למתחם'!H14 -> 0 | E12: ='ד. ציוד כללי למתחם'!K14 -> 0 | F12: ='ד. ציוד כללי למתחם'!L14 -> 0 | G12: =IF(F12=0,"",'ד. ציוד כללי למתחם'!M14) ->  | H12: ='ד. ציוד כללי למתחם'!N14 -> 0
A13: ='ד. ציוד כללי למתחם'!B15 -> אביזרי נוי | B13: ='ד. ציוד כללי למתחם'!G15 -> 0 | C13: ='ד. ציוד כללי למתחם'!H15 -> 0 | E13: ='ד. ציוד כללי למתחם'!K15 -> 0 | F13: ='ד. ציוד כללי למתחם'!L15 -> 0 | G13: =IF(F13=0,"",'ד. ציוד כללי למתחם'!M15) ->  | H13: ='ד. ציוד כללי למתחם'!N15 -> 0
A14: ='ד. ציוד כללי למתחם'!B18 -> מערכת הקרנה ומסך חשמלי | B14: ='ד. ציוד כללי למתחם'!G18 -> 0 | C14: ='ד. ציוד כללי למתחם'!H18 -> 0 | E14: ='ד. ציוד כללי למתחם'!K18 -> 0 | F14: ='ד. ציוד כללי למתחם'!L18 -> 0 | G14: =IF(F14=0,"",'ד. ציוד כללי למתחם'!M18) ->  | H14: ='ד. ציוד כללי למתחם'!N18 -> 0
A15: ='ד. ציוד כללי למתחם'!B19 -> מחשב קומפלט | B15: ='ד. ציוד כללי למתחם'!G19 -> 0 | C15: ='ד. ציוד כללי למתחם'!H19 -> 0 | E15: ='ד. ציוד כללי למתחם'!K19 -> 0 | F15: ='ד. ציוד כללי למתחם'!L19 -> 0 | G15: =IF(F15=0,"",'ד. ציוד כללי למתחם'!M19) ->  | H15: ='ד. ציוד כללי למתחם'!N19 -> 0
A16: ='ד. ציוד כללי למתחם'!B20 -> ציוד הגברה | B16: ='ד. ציוד כללי למתחם'!G20 -> 0 | C16: ='ד. ציוד כללי למתחם'!H20 -> 0 | E16: ='ד. ציוד כללי למתחם'!K20 -> 0 | F16: ='ד. ציוד כללי למתחם'!L20 -> 0 | G16: =IF(F16=0,"",'ד. ציוד כללי למתחם'!M20) ->  | H16: ='ד. ציוד כללי למתחם'!N20 -> 0
A17: ='ד. ציוד כללי למתחם'!B23 -> מכונת שטיפת רצפות | B17: ='ד. ציוד כללי למתחם'!G23 -> 0 | C17: ='ד. ציוד כללי למתחם'!H23 -> 0 | E17: ='ד. ציוד כללי למתחם'!K23 -> 0 | F17: ='ד. ציוד כללי למתחם'!L23 -> 0 | G17: =IF(F17=0,"",'ד. ציוד כללי למתחם'!M23) ->  | H17: ='ד. ציוד כללי למתחם'!N23 -> 0
A18: ='ד. ציוד כללי למתחם'!B24 -> שואב אבק תעשייתי | B18: ='ד. ציוד כללי למתחם'!G24 -> 0 | C18: ='ד. ציוד כללי למתחם'!H24 -> 0 | E18: ='ד. ציוד כללי למתחם'!K24 -> 0 | F18: ='ד. ציוד כללי למתחם'!L24 -> 0 | G18: =IF(F18=0,"",'ד. ציוד כללי למתחם'!M24) ->  | H18: ='ד. ציוד כללי למתחם'!N24 -> 0
A19: ='ד. ציוד כללי למתחם'!B25 -> מכונת כביסה 7 ק"ג | B19: ='ד. ציוד כללי למתחם'!G25 -> 0 | C19: ='ד. ציוד כללי למתחם'!H25 -> 0 | E19: ='ד. ציוד כללי למתחם'!K25 -> 0 | F19: ='ד. ציוד כללי למתחם'!L25 -> 0 | G19: =IF(F19=0,"",'ד. ציוד כללי למתחם'!M25) ->  | H19: ='ד. ציוד כללי למתחם'!N25 -> 0
A20: ='ד. ציוד כללי למתחם'!B26 -> מייבש כביסה 7 ק"ג | B20: ='ד. ציוד כללי למתחם'!G26 -> 0 | C20: ='ד. ציוד כללי למתחם'!H26 -> 0 | E20: ='ד. ציוד כללי למתחם'!K26 -> 0 | F20: ='ד. ציוד כללי למתחם'!L26 -> 0 | G20: =IF(F20=0,"",'ד. ציוד כללי למתחם'!M26) ->  | H20: ='ד. ציוד כללי למתחם'!N26 -> 0
A21: ='ד. ציוד כללי למתחם'!B27 -> סולם | B21: ='ד. ציוד כללי למתחם'!G27 -> 0 | C21: ='ד. ציוד כללי למתחם'!H27 -> 0 | E21: ='ד. ציוד כללי למתחם'!K27 -> 0 | F21: ='ד. ציוד כללי למתחם'!L27 -> 0 | G21: =IF(F21=0,"",'ד. ציוד כללי למתחם'!M27) ->  | H21: ='ד. ציוד כללי למתחם'!N27 -> 0
A22: ='ד. ציוד כללי למתחם'!B28 -> ארגז כלים | B22: ='ד. ציוד כללי למתחם'!G28 -> 0 | C22: ='ד. ציוד כללי למתחם'!H28 -> 0 | E22: ='ד. ציוד כללי למתחם'!K28 -> 0 | F22: ='ד. ציוד כללי למתחם'!L28 -> 0 | G22: =IF(F22=0,"",'ד. ציוד כללי למתחם'!M28) ->  | H22: ='ד. ציוד כללי למתחם'!N28 -> 0
A23: ='ד. ציוד כללי למתחם'!B29 -> ציוד לתחזוקת חצר וגינון | B23: ='ד. ציוד כללי למתחם'!G29 -> 0 | C23: ='ד. ציוד כללי למתחם'!H29 -> 0 | E23: ='ד. ציוד כללי למתחם'!K29 -> 0 | F23: ='ד. ציוד כללי למתחם'!L29 -> 0 | G23: =IF(F23=0,"",'ד. ציוד כללי למתחם'!M29) ->  | H23: ='ד. ציוד כללי למתחם'!N29 -> 0
A24: ='ד. ציוד כללי למתחם'!B32 -> מערכת מצלמות אבטחה | B24: ='ד. ציוד כללי למתחם'!G32 -> 0 | C24: ='ד. ציוד כללי למתחם'!H32 -> 0 | E24: ='ד. ציוד כללי למתחם'!K32 -> 0 | F24: ='ד. ציוד כללי למתחם'!L32 -> 0 | G24: =IF(F24=0,"",'ד. ציוד כללי למתחם'!M32) ->  | H24: ='ד. ציוד כללי למתחם'!N32 -> 0
A25: ='ד. ציוד כללי למתחם'!B33 -> מערכת כריזת חירום | B25: ='ד. ציוד כללי למתחם'!G33 -> 0 | C25: ='ד. ציוד כללי למתחם'!H33 -> 0 | E25: ='ד. ציוד כללי למתחם'!K33 -> 0 | F25: ='ד. ציוד כללי למתחם'!L33 -> 0 | G25: =IF(F25=0,"",'ד. ציוד כללי למתחם'!M33) ->  | H25: ='ד. ציוד כללי למתחם'!N33 -> 0
A26: ='ד. ציוד כללי למתחם'!B36 -> תיק עזרה ראשונה | B26: ='ד. ציוד כללי למתחם'!G36 -> 0 | C26: ='ד. ציוד כללי למתחם'!H36 -> 0 | E26: ='ד. ציוד כללי למתחם'!K36 -> 0 | F26: ='ד. ציוד כללי למתחם'!L36 -> 0 | G26: =IF(F26=0,"",'ד. ציוד כללי למתחם'!M36) ->  | H26: ='ד. ציוד כללי למתחם'!N36 -> 0
A27: ='ד. ציוד כללי למתחם'!B37 -> דיפיבריליאטור | B27: ='ד. ציוד כללי למתחם'!G37 -> 0 | C27: ='ד. ציוד כללי למתחם'!H37 -> 0 | E27: ='ד. ציוד כללי למתחם'!K37 -> 0 | F27: ='ד. ציוד כללי למתחם'!L37 -> 0 | G27: =IF(F27=0,"",'ד. ציוד כללי למתחם'!M37) ->  | H27: ='ד. ציוד כללי למתחם'!N37 -> 0
A28: ='ד. ציוד כללי למתחם'!B38 -> ארון תרופות | B28: ='ד. ציוד כללי למתחם'!G38 -> 0 | C28: ='ד. ציוד כללי למתחם'!H38 -> 0 | E28: ='ד. ציוד כללי למתחם'!K38 -> 0 | F28: ='ד. ציוד כללי למתחם'!L38 -> 0 | G28: =IF(F28=0,"",'ד. ציוד כללי למתחם'!M38) ->  | H28: ='ד. ציוד כללי למתחם'!N38 -> 0
A29: ='ד. ציוד כללי למתחם'!B41 -> שולחן חדר אוכל | B29: ='ד. ציוד כללי למתחם'!G41 -> 0 | C29: ='ד. ציוד כללי למתחם'!H41 -> 0 | E29: ='ד. ציוד כללי למתחם'!K41 -> 0 | F29: ='ד. ציוד כללי למתחם'!L41 -> 0 | G29: =IF(F29=0,"",'ד. ציוד כללי למתחם'!M41) ->  | H29: ='ד. ציוד כללי למתחם'!N41 -> 0
A30: ='ד. ציוד כללי למתחם'!B42 -> כיסא חדר אוכל | B30: ='ד. ציוד כללי למתחם'!G42 -> 0 | C30: ='ד. ציוד כללי למתחם'!H42 -> 0 | E30: ='ד. ציוד כללי למתחם'!K42 -> 0 | F30: ='ד. ציוד כללי למתחם'!L42 -> 0 | G30: =IF(F30=0,"",'ד. ציוד כללי למתחם'!M42) ->  | H30: ='ד. ציוד כללי למתחם'!N42 -> 0
A31: ='ד. ציוד כללי למתחם'!B43 -> סט כלי אוכל | B31: ='ד. ציוד כללי למתחם'!G43 -> 0 | C31: ='ד. ציוד כללי למתחם'!H43 -> 0 | E31: ='ד. ציוד כללי למתחם'!K43 -> 0 | F31: ='ד. ציוד כללי למתחם'!L43 -> 0 | G31: =IF(F31=0,"",'ד. ציוד כללי למתחם'!M43) ->  | H31: ='ד. ציוד כללי למתחם'!N43 -> 0
A32: ='ד. ציוד כללי למתחם'!B44 -> עגלת אשפה | B32: ='ד. ציוד כללי למתחם'!G44 -> 0 | C32: ='ד. ציוד כללי למתחם'!H44 -> 0 | E32: ='ד. ציוד כללי למתחם'!K44 -> 0 | F32: ='ד. ציוד כללי למתחם'!L44 -> 0 | G32: =IF(F32=0,"",'ד. ציוד כללי למתחם'!M44) ->  | H32: ='ד. ציוד כללי למתחם'!N44 -> 0
A33: ='ד. ציוד כללי למתחם'!B46 -> שירותי אדריכלות ועיצוב פנים | B33: ='ד. ציוד כללי למתחם'!G46 -> 0 | C33: ='ד. ציוד כללי למתחם'!H46 -> 0 | E33: ='ד. ציוד כללי למתחם'!K46 -> 0 | F33: ='ד. ציוד כללי למתחם'!L46 -> 0 | G33: =IF(F33=0,"",'ד. ציוד כללי למתחם'!M46) ->  | H33: ='ד. ציוד כללי למתחם'!N46 -> 0
A34: ='ד. ציוד כללי למתחם'!B47 -> סה"כ ציוד כללי למתחם כולל מע"מ | C34: =SUM(C9:C33) -> 0 | E34: ='ד. ציוד כללי למתחם'!K47 -> סה"כ ציוד כללי למתחם כולל מע"מ | G34: =IF(F34=0,"",'ד. ציוד כללי למתחם'!M47) ->  | H34: =SUM(H9:H33) -> 0
A35: ='יח. סיכום'!B28 -> ציוד חדרי קבוצות | E35: =A35 -> ציוד חדרי קבוצות
A36: ='ה. ציוד חדרי קבוצות'!B9 -> כסא בחדר קבוצה | B36: ='ה. ציוד חדרי קבוצות'!G9 -> 0 | C36: ='ה. ציוד חדרי קבוצות'!H9 -> 0 | E36: ='ה. ציוד חדרי קבוצות'!K9 -> 0 | F36: ='ה. ציוד חדרי קבוצות'!L9 -> 0 | G36: =IF(F36=0,"",'ה. ציוד חדרי קבוצות'!M9) ->  | H36: ='ה. ציוד חדרי קבוצות'!N9 -> 0
A37: ='ה. ציוד חדרי קבוצות'!B10 -> שולחן בחדר קבוצה | B37: ='ה. ציוד חדרי קבוצות'!G10 -> 0 | C37: ='ה. ציוד חדרי קבוצות'!H10 -> 0 | E37: ='ה. ציוד חדרי קבוצות'!K10 -> 0 | F37: ='ה. ציוד חדרי קבוצות'!L10 -> 0 | G37: =IF(F37=0,"",'ה. ציוד חדרי קבוצות'!M10) ->  | H37: ='ה. ציוד חדרי קבוצות'!N10 -> 0
A38: ='ה. ציוד חדרי קבוצות'!B11 -> שולחן מחשב | B38: ='ה. ציוד חדרי קבוצות'!G11 -> 0 | C38: ='ה. ציוד חדרי קבוצות'!H11 -> 0 | E38: ='ה. ציוד חדרי קבוצות'!K11 -> 0 | F38: ='ה. ציוד חדרי קבוצות'!L11 -> 0 | G38: =IF(F38=0,"",'ה. ציוד חדרי קבוצות'!M11) ->  | H38: ='ה. ציוד חדרי קבוצות'!N11 -> 0
A39: ='ה. ציוד חדרי קבוצות'!B12 -> כורסא | B39: ='ה. ציוד חדרי קבוצות'!G12 -> 0 | C39: ='ה. ציוד חדרי קבוצות'!H12 -> 0 | E39: ='ה. ציוד חדרי קבוצות'!K12 -> 0 | F39: ='ה. ציוד חדרי קבוצות'!L12 -> 0 | G39: =IF(F39=0,"",'ה. ציוד חדרי קבוצות'!M12) ->  | H39: ='ה. ציוד חדרי קבוצות'!N12 -> 0
A40: ='ה. ציוד חדרי קבוצות'!B13 -> ארון איחסון | B40: ='ה. ציוד חדרי קבוצות'!G13 -> 0 | C40: ='ה. ציוד חדרי קבוצות'!H13 -> 0 | E40: ='ה. ציוד חדרי קבוצות'!K13 -> 0 | F40: ='ה. ציוד חדרי קבוצות'!L13 -> 0 | G40: =IF(F40=0,"",'ה. ציוד חדרי קבוצות'!M13) ->  | H40: ='ה. ציוד חדרי קבוצות'!N13 -> 0
A41: ='ה. ציוד חדרי קבוצות'!B14 -> כוננית מדפים | B41: ='ה. ציוד חדרי קבוצות'!G14 -> 0 | C41: ='ה. ציוד חדרי קבוצות'!H14 -> 0 | E41: ='ה. ציוד חדרי קבוצות'!K14 -> 0 | F41: ='ה. ציוד חדרי קבוצות'!L14 -> 0 | G41: =IF(F41=0,"",'ה. ציוד חדרי קבוצות'!M14) ->  | H41: ='ה. ציוד חדרי קבוצות'!N14 -> 0
A42: ='ה. ציוד חדרי קבוצות'!B15 -> ארון לוקרים | B42: ='ה. ציוד חדרי קבוצות'!G15 -> 0 | C42: ='ה. ציוד חדרי קבוצות'!H15 -> 0 | E42: ='ה. ציוד חדרי קבוצות'!K15 -> 0 | F42: ='ה. ציוד חדרי קבוצות'!L15 -> 0 | G42: =IF(F42=0,"",'ה. ציוד חדרי קבוצות'!M15) ->  | H42: ='ה. ציוד חדרי קבוצות'!N15 -> 0
A43: ='ה. ציוד חדרי קבוצות'!B16 -> מראה | B43: ='ה. ציוד חדרי קבוצות'!G16 -> 0 | C43: ='ה. ציוד חדרי קבוצות'!H16 -> 0 | E43: ='ה. ציוד חדרי קבוצות'!K16 -> 0 | F43: ='ה. ציוד חדרי קבוצות'!L16 -> 0 | G43: =IF(F43=0,"",'ה. ציוד חדרי קבוצות'!M16) ->  | H43: ='ה. ציוד חדרי קבוצות'!N16 -> 0
A44: ='ה. ציוד חדרי קבוצות'!B17 -> שעון קיר | B44: ='ה. ציוד חדרי קבוצות'!G17 -> 0 | C44: ='ה. ציוד חדרי קבוצות'!H17 -> 0 | E44: ='ה. ציוד חדרי קבוצות'!K17 -> 0 | F44: ='ה. ציוד חדרי קבוצות'!L17 -> 0 | G44: =IF(F44=0,"",'ה. ציוד חדרי קבוצות'!M17) ->  | H44: ='ה. ציוד חדרי קבוצות'!N17 -> 0
A45: ='ה. ציוד חדרי קבוצות'!B18 -> וילונות חסיני אש | B45: ='ה. ציוד חדרי קבוצות'!G18 -> 0 | C45: ='ה. ציוד חדרי קבוצות'!H18 -> 0 | E45: ='ה. ציוד חדרי קבוצות'!K18 -> 0 | F45: ='ה. ציוד חדרי קבוצות'!L18 -> 0 | G45: =IF(F45=0,"",'ה. ציוד חדרי קבוצות'!M18) ->  | H45: ='ה. ציוד חדרי קבוצות'!N18 -> 0
A46: ='ה. ציוד חדרי קבוצות'!B19 -> שלוט פנים לאיפיון חדרים | B46: ='ה. ציוד חדרי קבוצות'!G19 -> 0 | C46: ='ה. ציוד חדרי קבוצות'!H19 -> 0 | E46: ='ה. ציוד חדרי קבוצות'!K19 -> 0 | F46: ='ה. ציוד חדרי קבוצות'!L19 -> 0 | G46: =IF(F46=0,"",'ה. ציוד חדרי קבוצות'!M19) ->  | H46: ='ה. ציוד חדרי קבוצות'!N19 -> 0
A47: ='ה. ציוד חדרי קבוצות'!B22 -> מחשב קומפלט | B47: ='ה. ציוד חדרי קבוצות'!G22 -> 0 | C47: ='ה. ציוד חדרי קבוצות'!H22 -> 0 | E47: ='ה. ציוד חדרי קבוצות'!K22 -> 0 | F47: ='ה. ציוד חדרי קבוצות'!L22 -> 0 | G47: =IF(F47=0,"",'ה. ציוד חדרי קבוצות'!M22) ->  | H47: ='ה. ציוד חדרי קבוצות'!N22 -> 0
A48: ='ה. ציוד חדרי קבוצות'!B23 -> מדפסת משולבת | B48: ='ה. ציוד חדרי קבוצות'!G23 -> 0 | C48: ='ה. ציוד חדרי קבוצות'!H23 -> 0 | E48: ='ה. ציוד חדרי קבוצות'!K23 -> 0 | F48: ='ה. ציוד חדרי קבוצות'!L23 -> 0 | G48: =IF(F48=0,"",'ה. ציוד חדרי קבוצות'!M23) ->  | H48: ='ה. ציוד חדרי קבוצות'!N23 -> 0
A49: ='ה. ציוד חדרי קבוצות'!B24 -> טלוויזיה 65" + מגן | B49: ='ה. ציוד חדרי קבוצות'!G24 -> 0 | C49: ='ה. ציוד חדרי קבוצות'!H24 -> 0 | E49: ='ה. ציוד חדרי קבוצות'!K24 -> 0 | F49: ='ה. ציוד חדרי קבוצות'!L24 -> 0 | G49: =IF(F49=0,"",'ה. ציוד חדרי קבוצות'!M24) ->  | H49: ='ה. ציוד חדרי קבוצות'!N24 -> 0
A50: ='ה. ציוד חדרי קבוצות'!B27 -> מתקן נייר טואלט כפול | B50: ='ה. ציוד חדרי קבוצות'!G27 -> 0 | C50: ='ה. ציוד חדרי קבוצות'!H27 -> 0 | E50: ='ה. ציוד חדרי קבוצות'!K27 -> 0 | F50: ='ה. ציוד חדרי קבוצות'!L27 -> 0 | G50: =IF(F50=0,"",'ה. ציוד חדרי קבוצות'!M27) ->  | H50: ='ה. ציוד חדרי קבוצות'!N27 -> 0
A51: ='ה. ציוד חדרי קבוצות'!B28 -> פח אשפה | B51: ='ה. ציוד חדרי קבוצות'!G28 -> 0 | C51: ='ה. ציוד חדרי קבוצות'!H28 -> 0 | E51: ='ה. ציוד חדרי קבוצות'!K28 -> 0 | F51: ='ה. ציוד חדרי קבוצות'!L28 -> 0 | G51: =IF(F51=0,"",'ה. ציוד חדרי קבוצות'!M28) ->  | H51: ='ה. ציוד חדרי קבוצות'!N28 -> 0
A52: ='ה. ציוד חדרי קבוצות'!B29 -> דיספנסר לסבון נוזלי | B52: ='ה. ציוד חדרי קבוצות'!G29 -> 0 | C52: ='ה. ציוד חדרי קבוצות'!H29 -> 0 | E52: ='ה. ציוד חדרי קבוצות'!K29 -> 0 | F52: ='ה. ציוד חדרי קבוצות'!L29 -> 0 | G52: =IF(F52=0,"",'ה. ציוד חדרי קבוצות'!M29) ->  | H52: ='ה. ציוד חדרי קבוצות'!N29 -> 0
A53: ='ה. ציוד חדרי קבוצות'!B30 -> מתקן מגבות נייר | B53: ='ה. ציוד חדרי קבוצות'!G30 -> 0 | C53: ='ה. ציוד חדרי קבוצות'!H30 -> 0 | E53: ='ה. ציוד חדרי קבוצות'!K30 -> 0 | F53: ='ה. ציוד חדרי קבוצות'!L30 -> 0 | G53: =IF(F53=0,"",'ה. ציוד חדרי קבוצות'!M30) ->  | H53: ='ה. ציוד חדרי קבוצות'!N30 -> 0
A54: ='ה. ציוד חדרי קבוצות'!B31 -> מראה | B54: ='ה. ציוד חדרי קבוצות'!G31 -> 0 | C54: ='ה. ציוד חדרי קבוצות'!H31 -> 0 | E54: ='ה. ציוד חדרי קבוצות'!K31 -> 0 | F54: ='ה. ציוד חדרי קבוצות'!L31 -> 0 | G54: =IF(F54=0,"",'ה. ציוד חדרי קבוצות'!M31) ->  | H54: ='ה. ציוד חדרי קבוצות'!N31 -> 0
A55: ='ה. ציוד חדרי קבוצות'!B32 -> מתקן ניקוי אסלה | B55: ='ה. ציוד חדרי קבוצות'!G32 -> 0 | C55: ='ה. ציוד חדרי קבוצות'!H32 -> 0 | E55: ='ה. ציוד חדרי קבוצות'!K32 -> 0 | F55: ='ה. ציוד חדרי קבוצות'!L32 -> 0 | G55: =IF(F55=0,"",'ה. ציוד חדרי קבוצות'!M32) ->  | H55: ='ה. ציוד חדרי קבוצות'!N32 -> 0
A56: ='ה. ציוד חדרי קבוצות'!B35 -> שמשיה למרפסת | B56: ='ה. ציוד חדרי קבוצות'!G35 -> 0 | C56: ='ה. ציוד חדרי קבוצות'!H35 -> 0 | E56: ='ה. ציוד חדרי קבוצות'!K35 -> 0 | F56: ='ה. ציוד חדרי קבוצות'!L35 -> 0 | G56: =IF(F56=0,"",'ה. ציוד חדרי קבוצות'!M35) ->  | H56: ='ה. ציוד חדרי קבוצות'!N35 -> 0
A57: ='ה. ציוד חדרי קבוצות'!B36 -> פינת ישיבה למרפסת כיתה | B57: ='ה. ציוד חדרי קבוצות'!G36 -> 0 | C57: ='ה. ציוד חדרי קבוצות'!H36 -> 0 | E57: ='ה. ציוד חדרי קבוצות'!K36 -> 0 | F57: ='ה. ציוד חדרי קבוצות'!L36 -> 0 | G57: =IF(F57=0,"",'ה. ציוד חדרי קבוצות'!M36) ->  | H57: ='ה. ציוד חדרי קבוצות'!N36 -> 0
A58: ='ה. ציוד חדרי קבוצות'!B38 -> סה"כ ציוד וריהוט חדרי קבוצות כולל מע"מ | C58: =SUM(C36:C57) -> 0 | E58: =A58 -> סה"כ ציוד וריהוט חדרי קבוצות כולל מע"מ | H58: =SUM(H36:H57) -> 0
A59: ='יח. סיכום'!B29 -> ריפוי בעיסוק | E59: =A59 -> ריפוי בעיסוק
A60: ='ו. ריפוי בעיסוק'!B9 -> מזרונים טיפוליים | B60: ='ו. ריפוי בעיסוק'!G9 -> 0 | C60: ='ו. ריפוי בעיסוק'!H9 -> 0 | E60: ='ו. ריפוי בעיסוק'!K9 -> 0 | F60: ='ו. ריפוי בעיסוק'!L9 -> 0 | G60: =IF(F60=0,"",'ו. ריפוי בעיסוק'!M9) ->  | H60: ='ו. ריפוי בעיסוק'!N9 -> 0
A61: ='ו. ריפוי בעיסוק'!B10 -> ארון אחסון | B61: ='ו. ריפוי בעיסוק'!G10 -> 0 | C61: ='ו. ריפוי בעיסוק'!H10 -> 0 | E61: ='ו. ריפוי בעיסוק'!K10 -> 0 | F61: ='ו. ריפוי בעיסוק'!L10 -> 0 | G61: =IF(F61=0,"",'ו. ריפוי בעיסוק'!M10) ->  | H61: ='ו. ריפוי בעיסוק'!N10 -> 0
A62: ='ו. ריפוי בעיסוק'!B11 -> מדף אחסון לציוד גדול תלוי | B62: ='ו. ריפוי בעיסוק'!G11 -> 0 | C62: ='ו. ריפוי בעיסוק'!H11 -> 0 | E62: ='ו. ריפוי בעיסוק'!K11 -> 0 | F62: ='ו. ריפוי בעיסוק'!L11 -> 0 | G62: =IF(F62=0,"",'ו. ריפוי בעיסוק'!M11) ->  | H62: ='ו. ריפוי בעיסוק'!N11 -> 0
A63: ='ו. ריפוי בעיסוק'!B12 -> כסא מתכוונן | B63: ='ו. ריפוי בעיסוק'!G12 -> 0 | C63: ='ו. ריפוי בעיסוק'!H12 -> 0 | E63: ='ו. ריפוי בעיסוק'!K12 -> 0 | F63: ='ו. ריפוי בעיסוק'!L12 -> 0 | G63: =IF(F63=0,"",'ו. ריפוי בעיסוק'!M12) ->  | H63: ='ו. ריפוי בעיסוק'!N12 -> 0
A64: ='ו. ריפוי בעיסוק'!B13 -> כסא מטפל | B64: ='ו. ריפוי בעיסוק'!G13 -> 0 | C64: ='ו. ריפוי בעיסוק'!H13 -> 0 | E64: ='ו. ריפוי בעיסוק'!K13 -> 0 | F64: ='ו. ריפוי בעיסוק'!L13 -> 0 | G64: =IF(F64=0,"",'ו. ריפוי בעיסוק'!M13) ->  | H64: ='ו. ריפוי בעיסוק'!N13 -> 0
A65: ='ו. ריפוי בעיסוק'!B14 -> לוח מחיק | B65: ='ו. ריפוי בעיסוק'!G14 -> 0 | C65: ='ו. ריפוי בעיסוק'!H14 -> 0 | E65: ='ו. ריפוי בעיסוק'!K14 -> 0 | F65: ='ו. ריפוי בעיסוק'!L14 -> 0 | G65: =IF(F65=0,"",'ו. ריפוי בעיסוק'!M14) ->  | H65: ='ו. ריפוי בעיסוק'!N14 -> 0
A66: ='ו. ריפוי בעיסוק'!B15 -> מראה קבועה ווילון | B66: ='ו. ריפוי בעיסוק'!G15 -> 0 | C66: ='ו. ריפוי בעיסוק'!H15 -> 0 | E66: ='ו. ריפוי בעיסוק'!K15 -> 0 | F66: ='ו. ריפוי בעיסוק'!L15 -> 0 | G66: =IF(F66=0,"",'ו. ריפוי בעיסוק'!M15) ->  | H66: ='ו. ריפוי בעיסוק'!N15 -> 0
A67: ='ו. ריפוי בעיסוק'!B16 -> שולחן מתכוונן חשמלי | B67: ='ו. ריפוי בעיסוק'!G16 -> 0 | C67: ='ו. ריפוי בעיסוק'!H16 -> 0 | E67: ='ו. ריפוי בעיסוק'!K16 -> 0 | F67: ='ו. ריפוי בעיסוק'!L16 -> 0 | G67: =IF(F67=0,"",'ו. ריפוי בעיסוק'!M16) ->  | H67: ='ו. ריפוי בעיסוק'!N16 -> 0
A68: ='ו. ריפוי בעיסוק'!B19 -> נקודת תליה בתקרה, כולל התקנה | B68: ='ו. ריפוי בעיסוק'!G19 -> 0 | C68: ='ו. ריפוי בעיסוק'!H19 -> 0 | E68: ='ו. ריפוי בעיסוק'!K19 -> 0 | F68: ='ו. ריפוי בעיסוק'!L19 -> 0 | G68: =IF(F68=0,"",'ו. ריפוי בעיסוק'!M19) ->  | H68: ='ו. ריפוי בעיסוק'!N19 -> 0
A69: ='ו. ריפוי בעיסוק'!B20 -> סקוטר למשקל של מבוגרים | B69: ='ו. ריפוי בעיסוק'!G20 -> 0 | C69: ='ו. ריפוי בעיסוק'!H20 -> 0 | E69: ='ו. ריפוי בעיסוק'!K20 -> 0 | F69: ='ו. ריפוי בעיסוק'!L20 -> 0 | G69: =IF(F69=0,"",'ו. ריפוי בעיסוק'!M20) ->  | H69: ='ו. ריפוי בעיסוק'!N20 -> 0
A70: ='ו. ריפוי בעיסוק'!B21 -> חבית טיפולית | B70: ='ו. ריפוי בעיסוק'!G21 -> 0 | C70: ='ו. ריפוי בעיסוק'!H21 -> 0 | E70: ='ו. ריפוי בעיסוק'!K21 -> 0 | F70: ='ו. ריפוי בעיסוק'!L21 -> 0 | G70: =IF(F70=0,"",'ו. ריפוי בעיסוק'!M21) ->  | H70: ='ו. ריפוי בעיסוק'!N21 -> 0
A71: ='ו. ריפוי בעיסוק'!B22 -> סט חמישה ספסלים | B71: ='ו. ריפוי בעיסוק'!G22 -> 0 | C71: ='ו. ריפוי בעיסוק'!H22 -> 0 | E71: ='ו. ריפוי בעיסוק'!K22 -> 0 | F71: ='ו. ריפוי בעיסוק'!L22 -> 0 | G71: =IF(F71=0,"",'ו. ריפוי בעיסוק'!M22) ->  | H71: ='ו. ריפוי בעיסוק'!N22 -> 0
A72: ='ו. ריפוי בעיסוק'!B23 -> ערסל בד טיפולי | B72: ='ו. ריפוי בעיסוק'!G23 -> 0 | C72: ='ו. ריפוי בעיסוק'!H23 -> 0 | E72: ='ו. ריפוי בעיסוק'!K23 -> 0 | F72: ='ו. ריפוי בעיסוק'!L23 -> 0 | G72: =IF(F72=0,"",'ו. ריפוי בעיסוק'!M23) ->  | H72: ='ו. ריפוי בעיסוק'!N23 -> 0
A73: ='ו. ריפוי בעיסוק'!B24 -> צלחת וסטיבולרית לבוגרים | B73: ='ו. ריפוי בעיסוק'!G24 -> 0 | C73: ='ו. ריפוי בעיסוק'!H24 -> 0 | E73: ='ו. ריפוי בעיסוק'!K24 -> 0 | F73: ='ו. ריפוי בעיסוק'!L24 -> 0 | G73: =IF(F73=0,"",'ו. ריפוי בעיסוק'!M24) ->  | H73: ='ו. ריפוי בעיסוק'!N24 -> 0
A74: ='ו. ריפוי בעיסוק'!B25 -> כדורים (סכום גלובלי) | B74: ='ו. ריפוי בעיסוק'!G25 -> 0 | C74: ='ו. ריפוי בעיסוק'!H25 -> 0 | E74: ='ו. ריפוי בעיסוק'!K25 -> 0 | F74: ='ו. ריפוי בעיסוק'!L25 -> 0 | G74: =IF(F74=0,"",'ו. ריפוי בעיסוק'!M25) ->  | H74: ='ו. ריפוי בעיסוק'!N25 -> 0
A75: ='ו. ריפוי בעיסוק'!B26 -> גלילים בגדלים שונים (סכום גלובלי) | B75: ='ו. ריפוי בעיסוק'!G26 -> 0 | C75: ='ו. ריפוי בעיסוק'!H26 -> 0 | E75: ='ו. ריפוי בעיסוק'!K26 -> 0 | F75: ='ו. ריפוי בעיסוק'!L26 -> 0 | G75: =IF(F75=0,"",'ו. ריפוי בעיסוק'!M26) ->  | H75: ='ו. ריפוי בעיסוק'!N26 -> 0
A76: ='ו. ריפוי בעיסוק'!B27 -> וסט נאופרן | B76: ='ו. ריפוי בעיסוק'!G27 -> 0 | C76: ='ו. ריפוי בעיסוק'!H27 -> 0 | E76: ='ו. ריפוי בעיסוק'!K27 -> 0 | F76: ='ו. ריפוי בעיסוק'!L27 -> 0 | G76: =IF(F76=0,"",'ו. ריפוי בעיסוק'!M27) ->  | H76: ='ו. ריפוי בעיסוק'!N27 -> 0
A77: ='ו. ריפוי בעיסוק'!B28 -> משחקי גריה שונים (סכום גלובלי) | B77: ='ו. ריפוי בעיסוק'!G28 -> 0 | C77: ='ו. ריפוי בעיסוק'!H28 -> 0 | E77: ='ו. ריפוי בעיסוק'!K28 -> 0 | F77: ='ו. ריפוי בעיסוק'!L28 -> 0 | G77: =IF(F77=0,"",'ו. ריפוי בעיסוק'!M28) ->  | H77: ='ו. ריפוי בעיסוק'!N28 -> 0
A78: ='ו. ריפוי בעיסוק'!B29 -> עזרים לטיפול קבוצתי (טבעות, מטפחות, כדורים, מצנח וכד') (סכום גלובלי) | B78: ='ו. ריפוי בעיסוק'!G29 -> 0 | C78: ='ו. ריפוי בעיסוק'!H29 -> 0 | E78: ='ו. ריפוי בעיסוק'!K29 -> 0 | F78: ='ו. ריפוי בעיסוק'!L29 -> 0 | G78: =IF(F78=0,"",'ו. ריפוי בעיסוק'!M29) ->  | H78: ='ו. ריפוי בעיסוק'!N29 -> 0
A79: ='ו. ריפוי בעיסוק'!B30 -> משחקי מרחב, בנייה והרכבה (סכום גלובלי) | B79: ='ו. ריפוי בעיסוק'!G30 -> 0 | C79: ='ו. ריפוי בעיסוק'!H30 -> 0 | E79: ='ו. ריפוי בעיסוק'!K30 -> 0 | F79: ='ו. ריפוי בעיסוק'!L30 -> 0 | G79: =IF(F79=0,"",'ו. ריפוי בעיסוק'!M30) ->  | H79: ='ו. ריפוי בעיסוק'!N30 -> 0
A80: ='ו. ריפוי בעיסוק'!B31 -> פאזלים ומשחקי תפיסה (סכום גלובלי) | B80: ='ו. ריפוי בעיסוק'!G31 -> 0 | C80: ='ו. ריפוי בעיסוק'!H31 -> 0 | E80: ='ו. ריפוי בעיסוק'!K31 -> 0 | F80: ='ו. ריפוי בעיסוק'!L31 -> 0 | G80: =IF(F80=0,"",'ו. ריפוי בעיסוק'!M31) ->  | H80: ='ו. ריפוי בעיסוק'!N31 -> 0
A81: ='ו. ריפוי בעיסוק'!B32 -> אביזרי ADL מותאמים (סכום גלובלי) | B81: ='ו. ריפוי בעיסוק'!G32 -> 0 | C81: ='ו. ריפוי בעיסוק'!H32 -> 0 | E81: ='ו. ריפוי בעיסוק'!K32 -> 0 | F81: ='ו. ריפוי בעיסוק'!L32 -> 0 | G81: =IF(F81=0,"",'ו. ריפוי בעיסוק'!M32) ->  | H81: ='ו. ריפוי בעיסוק'!N32 -> 0
A82: ='ו. ריפוי בעיסוק'!B33 -> ציוד להכנת סדי ידיים | B82: ='ו. ריפוי בעיסוק'!G33 -> 0 | C82: ='ו. ריפוי בעיסוק'!H33 -> 0 | E82: ='ו. ריפוי בעיסוק'!K33 -> 0 | F82: ='ו. ריפוי בעיסוק'!L33 -> 0 | G82: =IF(F82=0,"",'ו. ריפוי בעיסוק'!M33) ->  | H82: ='ו. ריפוי בעיסוק'!N33 -> 0
A83: ='ו. ריפוי בעיסוק'!B36 -> מחשב נייח/נייד עם מסך מגע | B83: ='ו. ריפוי בעיסוק'!G36 -> 0 | C83: ='ו. ריפוי בעיסוק'!H36 -> 0 | E83: ='ו. ריפוי בעיסוק'!K36 -> 0 | F83: ='ו. ריפוי בעיסוק'!L36 -> 0 | G83: =IF(F83=0,"",'ו. ריפוי בעיסוק'!M36) ->  | H83: ='ו. ריפוי בעיסוק'!N36 -> 0
A84: ='ו. ריפוי בעיסוק'!B37 -> מדפסת | B84: ='ו. ריפוי בעיסוק'!G37 -> 0 | C84: ='ו. ריפוי בעיסוק'!H37 -> 0 | E84: ='ו. ריפוי בעיסוק'!K37 -> 0 | F84: ='ו. ריפוי בעיסוק'!L37 -> 0 | G84: =IF(F84=0,"",'ו. ריפוי בעיסוק'!M37) ->  | H84: ='ו. ריפוי בעיסוק'!N37 -> 0
A85: ='ו. ריפוי בעיסוק'!B38 -> אייפד (1 ל 5 אנשים) Ipad 10.2" 128GB WIFI | B85: ='ו. ריפוי בעיסוק'!G38 -> 0 | C85: ='ו. ריפוי בעיסוק'!H38 -> 0 | E85: ='ו. ריפוי בעיסוק'!K38 -> 0 | F85: ='ו. ריפוי בעיסוק'!L38 -> 0 | G85: =IF(F85=0,"",'ו. ריפוי בעיסוק'!M38) ->  | H85: ='ו. ריפוי בעיסוק'!N38 -> 0
A86: ='ו. ריפוי בעיסוק'!B39 -> תוכנות לאייפד | B86: ='ו. ריפוי בעיסוק'!G39 -> 0 | C86: ='ו. ריפוי בעיסוק'!H39 -> 0 | E86: ='ו. ריפוי בעיסוק'!K39 -> 0 | F86: ='ו. ריפוי בעיסוק'!L39 -> 0 | G86: =IF(F86=0,"",'ו. ריפוי בעיסוק'!M39) ->  | H86: ='ו. ריפוי בעיסוק'!N39 -> 0
A87: ='ו. ריפוי בעיסוק'!B40 -> מגן לאייפד + מדבקת זכוכית | B87: ='ו. ריפוי בעיסוק'!G40 -> 0 | C87: ='ו. ריפוי בעיסוק'!H40 -> 0 | E87: ='ו. ריפוי בעיסוק'!K40 -> 0 | F87: ='ו. ריפוי בעיסוק'!L40 -> 0 | G87: =IF(F87=0,"",'ו. ריפוי בעיסוק'!M40) ->  | H87: ='ו. ריפוי בעיסוק'!N40 -> 0
A88: ='ו. ריפוי בעיסוק'!B41 -> Apple tv | B88: ='ו. ריפוי בעיסוק'!G41 -> 0 | C88: ='ו. ריפוי בעיסוק'!H41 -> 0 | E88: ='ו. ריפוי בעיסוק'!K41 -> 0 | F88: ='ו. ריפוי בעיסוק'!L41 -> 0 | G88: =IF(F88=0,"",'ו. ריפוי בעיסוק'!M41) ->  | H88: ='ו. ריפוי בעיסוק'!N41 -> 0
A89: ='ו. ריפוי בעיסוק'!B42 -> מסך הקרנה נגלל | B89: ='ו. ריפוי בעיסוק'!G42 -> 0 | C89: ='ו. ריפוי בעיסוק'!H42 -> 0 | E89: ='ו. ריפוי בעיסוק'!K42 -> 0 | F89: ='ו. ריפוי בעיסוק'!L42 -> 0 | G89: =IF(F89=0,"",'ו. ריפוי בעיסוק'!M42) ->  | H89: ='ו. ריפוי בעיסוק'!N42 -> 0
A90: ='ו. ריפוי בעיסוק'!B43 -> מסך מגע כ- 65" לתלייה על קיר+ ארון + מחשב להפעלה, ניתן להשתמש גם בלוח חכם | B90: ='ו. ריפוי בעיסוק'!G43 -> 0 | C90: ='ו. ריפוי בעיסוק'!H43 -> 0 | E90: ='ו. ריפוי בעיסוק'!K43 -> 0 | F90: ='ו. ריפוי בעיסוק'!L43 -> 0 | G90: =IF(F90=0,"",'ו. ריפוי בעיסוק'!M43) ->  | H90: ='ו. ריפוי בעיסוק'!N43 -> 0
A91: ='ו. ריפוי בעיסוק'!B44 -> מערכת מציאות מדומה | B91: ='ו. ריפוי בעיסוק'!G44 -> 0 | C91: ='ו. ריפוי בעיסוק'!H44 -> 0 | E91: ='ו. ריפוי בעיסוק'!K44 -> 0 | F91: ='ו. ריפוי בעיסוק'!L44 -> 0 | G91: =IF(F91=0,"",'ו. ריפוי בעיסוק'!M44) ->  | H91: ='ו. ריפוי בעיסוק'!N44 -> 0
A92: ='ו. ריפוי בעיסוק'!B45 -> עכברים ייחודיים | B92: ='ו. ריפוי בעיסוק'!G45 -> 0 | C92: ='ו. ריפוי בעיסוק'!H45 -> 0 | E92: ='ו. ריפוי בעיסוק'!K45 -> 0 | F92: ='ו. ריפוי בעיסוק'!L45 -> 0 | G92: =IF(F92=0,"",'ו. ריפוי בעיסוק'!M45) ->  | H92: ='ו. ריפוי בעיסוק'!N45 -> 0
A93: ='ו. ריפוי בעיסוק'!B46 -> מקלדות ייחודיות | B93: ='ו. ריפוי בעיסוק'!G46 -> 0 | C93: ='ו. ריפוי בעיסוק'!H46 -> 0 | E93: ='ו. ריפוי בעיסוק'!K46 -> 0 | F93: ='ו. ריפוי בעיסוק'!L46 -> 0 | G93: =IF(F93=0,"",'ו. ריפוי בעיסוק'!M46) ->  | H93: ='ו. ריפוי בעיסוק'!N46 -> 0
A94: ='ו. ריפוי בעיסוק'!B47 -> מתגים ומתאמי מתגים | B94: ='ו. ריפוי בעיסוק'!G47 -> 0 | C94: ='ו. ריפוי בעיסוק'!H47 -> 0 | E94: ='ו. ריפוי בעיסוק'!K47 -> 0 | F94: ='ו. ריפוי בעיסוק'!L47 -> 0 | G94: =IF(F94=0,"",'ו. ריפוי בעיסוק'!M47) ->  | H94: ='ו. ריפוי בעיסוק'!N47 -> 0
A95: ='ו. ריפוי בעיסוק'!B48 -> זרועות למתגים ולטאבלט | B95: ='ו. ריפוי בעיסוק'!G48 -> 0 | C95: ='ו. ריפוי בעיסוק'!H48 -> 0 | E95: ='ו. ריפוי בעיסוק'!K48 -> 0 | F95: ='ו. ריפוי בעיסוק'!L48 -> 0 | G95: =IF(F95=0,"",'ו. ריפוי בעיסוק'!M48) ->  | H95: ='ו. ריפוי בעיסוק'!N48 -> 0
A96: ='ו. ריפוי בעיסוק'!B49 -> צעצועים מותאמים - סכום גלובלי | B96: ='ו. ריפוי בעיסוק'!G49 -> 0 | C96: ='ו. ריפוי בעיסוק'!H49 -> 0 | E96: ='ו. ריפוי בעיסוק'!K49 -> 0 | F96: ='ו. ריפוי בעיסוק'!L49 -> 0 | G96: =IF(F96=0,"",'ו. ריפוי בעיסוק'!M49) ->  | H96: ='ו. ריפוי בעיסוק'!N49 -> 0
A97: ='ו. ריפוי בעיסוק'!B51 -> סה"כ ציוד ריפוי בעיסוק כולל מע"מ | C97: =SUM(C60:C96) -> 0 | E97: =A97 -> סה"כ ציוד ריפוי בעיסוק כולל מע"מ | H97: =SUM(H60:H96) -> 0
A98: ='יח. סיכום'!B30 -> קלינאות תקשורת | E98: קלינאות תקשורת
A99: ='ז. קלינאות תקשורת'!B8 -> מחשב נייח /נייד | B99: ='ז. קלינאות תקשורת'!G8 -> 0 | C99: ='ז. קלינאות תקשורת'!H8 -> 0 | E99: ='ז. קלינאות תקשורת'!K8 -> 0 | F99: ='ז. קלינאות תקשורת'!L8 -> 0 | G99: =IF(F99=0,"",'ז. קלינאות תקשורת'!M8) ->  | H99: ='ז. קלינאות תקשורת'!N8 -> 0
A100: ='ז. קלינאות תקשורת'!B9 -> מדפסת משולבת עם יישומי סריקה וצילום, פלט צבעוני | B100: ='ז. קלינאות תקשורת'!G9 -> 0 | C100: ='ז. קלינאות תקשורת'!H9 -> 0 | E100: ='ז. קלינאות תקשורת'!K9 -> 0 | F100: ='ז. קלינאות תקשורת'!L9 -> 0 | G100: =IF(F100=0,"",'ז. קלינאות תקשורת'!M9) ->  | H100: ='ז. קלינאות תקשורת'!N9 -> 0
A101: ='ז. קלינאות תקשורת'!B10 -> מכשיר למינציה | B101: ='ז. קלינאות תקשורת'!G10 -> 0 | C101: ='ז. קלינאות תקשורת'!H10 -> 0 | E101: ='ז. קלינאות תקשורת'!K10 -> 0 | F101: ='ז. קלינאות תקשורת'!L10 -> 0 | G101: =IF(F101=0,"",'ז. קלינאות תקשורת'!M10) ->  | H101: ='ז. קלינאות תקשורת'!N10 -> 0
A102: ='ז. קלינאות תקשורת'!B11 -> מחשב לוח (אייפד/טאבלט) | B102: ='ז. קלינאות תקשורת'!G11 -> 0 | C102: ='ז. קלינאות תקשורת'!H11 -> 0 | E102: ='ז. קלינאות תקשורת'!K11 -> 0 | F102: ='ז. קלינאות תקשורת'!L11 -> 0 | G102: =IF(F102=0,"",'ז. קלינאות תקשורת'!M11) ->  | H102: ='ז. קלינאות תקשורת'!N11 -> 0
A103: ='ז. קלינאות תקשורת'!B12 -> אפליקציות למחשב לוח (אייפד/טאבלט) | B103: ='ז. קלינאות תקשורת'!G12 -> 0 | C103: ='ז. קלינאות תקשורת'!H12 -> 0 | E103: ='ז. קלינאות תקשורת'!K12 -> 0 | F103: ='ז. קלינאות תקשורת'!L12 -> 0 | G103: =IF(F103=0,"",'ז. קלינאות תקשורת'!M12) ->  | H103: ='ז. קלינאות תקשורת'!N12 -> 0
A104: ='ז. קלינאות תקשורת'!B15 -> פלטים קוליים (סכום גלובלי) | B104: ='ז. קלינאות תקשורת'!G15 -> 0 | C104: ='ז. קלינאות תקשורת'!H15 -> 0 | E104: ='ז. קלינאות תקשורת'!K15 -> 0 | F104: ='ז. קלינאות תקשורת'!L15 -> 0 | G104: =IF(F104=0,"",'ז. קלינאות תקשורת'!M15) ->  | H104: ='ז. קלינאות תקשורת'!N15 -> 0
A105: ='ז. קלינאות תקשורת'!B16 -> מתגים (סכום גלובלי) | B105: ='ז. קלינאות תקשורת'!G16 -> 0 | C105: ='ז. קלינאות תקשורת'!H16 -> 0 | E105: ='ז. קלינאות תקשורת'!K16 -> 0 | F105: ='ז. קלינאות תקשורת'!L16 -> 0 | G105: =IF(F105=0,"",'ז. קלינאות תקשורת'!M16) ->  | H105: ='ז. קלינאות תקשורת'!N16 -> 0
A106: ='ז. קלינאות תקשורת'!B17 -> אפליקציות לתקשורת תומכת חליפית (סכום גלובלי) | B106: ='ז. קלינאות תקשורת'!G17 -> 0 | C106: ='ז. קלינאות תקשורת'!H17 -> 0 | E106: ='ז. קלינאות תקשורת'!K17 -> 0 | F106: ='ז. קלינאות תקשורת'!L17 -> 0 | G106: =IF(F106=0,"",'ז. קלינאות תקשורת'!M17) ->  | H106: ='ז. קלינאות תקשורת'!N17 -> 0
A107: ='ז. קלינאות תקשורת'!B18 -> תוכנת גריד (סכום גלובלי) | B107: ='ז. קלינאות תקשורת'!G18 -> 0 | C107: ='ז. קלינאות תקשורת'!H18 -> 0 | E107: ='ז. קלינאות תקשורת'!K18 -> 0 | F107: ='ז. קלינאות תקשורת'!L18 -> 0 | G107: =IF(F107=0,"",'ז. קלינאות תקשורת'!M18) ->  | H107: ='ז. קלינאות תקשורת'!N18 -> 0
A108: ='ז. קלינאות תקשורת'!B21 -> ציוד טיפולי, ספרים, כרטיסיות ומשחקי שפה ותקשורת | B108: ='ז. קלינאות תקשורת'!G21 -> 0 | C108: ='ז. קלינאות תקשורת'!H21 -> 0 | E108: ='ז. קלינאות תקשורת'!K21 -> 0 | F108: ='ז. קלינאות תקשורת'!L21 -> 0 | G108: =IF(F108=0,"",'ז. קלינאות תקשורת'!M21) ->  | H108: ='ז. קלינאות תקשורת'!N21 -> 0
A109: ='ז. קלינאות תקשורת'!B22 -> תוכנות תקשורת לאי-פד כמו sounding board, book creator,choice boards, snap scene ועוד, בהתאם למאפייני האוכלוסיה | B109: ='ז. קלינאות תקשורת'!G22 -> 0 | C109: ='ז. קלינאות תקשורת'!H22 -> 0 | E109: ='ז. קלינאות תקשורת'!K22 -> 0 | F109: ='ז. קלינאות תקשורת'!L22 -> 0 | G109: =IF(F109=0,"",'ז. קלינאות תקשורת'!M22) ->  | H109: ='ז. קלינאות תקשורת'!N22 -> 0
A110: ='ז. קלינאות תקשורת'!B23 -> אי פד | B110: ='ז. קלינאות תקשורת'!G23 -> 0 | C110: ='ז. קלינאות תקשורת'!H23 -> 0 | E110: ='ז. קלינאות תקשורת'!K23 -> 0 | F110: ='ז. קלינאות תקשורת'!L23 -> 0 | G110: =IF(F110=0,"",'ז. קלינאות תקשורת'!M23) ->  | H110: ='ז. קלינאות תקשורת'!N23 -> 0
A111: ='ז. קלינאות תקשורת'!B26 -> ארון אחסון לציוד | B111: ='ז. קלינאות תקשורת'!G26 -> 0 | C111: ='ז. קלינאות תקשורת'!H26 -> 0 | E111: ='ז. קלינאות תקשורת'!K26 -> 0 | F111: ='ז. קלינאות תקשורת'!L26 -> 0 | G111: =IF(F111=0,"",'ז. קלינאות תקשורת'!M26) ->  | H111: ='ז. קלינאות תקשורת'!N26 -> 0
A112: ='ז. קלינאות תקשורת'!B27 -> כסאות | B112: ='ז. קלינאות תקשורת'!G27 -> 0 | C112: ='ז. קלינאות תקשורת'!H27 -> 0 | E112: ='ז. קלינאות תקשורת'!K27 -> 0 | F112: ='ז. קלינאות תקשורת'!L27 -> 0 | G112: =IF(F112=0,"",'ז. קלינאות תקשורת'!M27) ->  | H112: ='ז. קלינאות תקשורת'!N27 -> 0
A113: ='ז. קלינאות תקשורת'!B28 -> שולחנות | B113: ='ז. קלינאות תקשורת'!G28 -> 0 | C113: ='ז. קלינאות תקשורת'!H28 -> 0 | E113: ='ז. קלינאות תקשורת'!K28 -> 0 | F113: ='ז. קלינאות תקשורת'!L28 -> 0 | G113: =IF(F113=0,"",'ז. קלינאות תקשורת'!M28) ->  | H113: ='ז. קלינאות תקשורת'!N28 -> 0
A114: ='ז. קלינאות תקשורת'!B29 -> מראה ווילון | B114: ='ז. קלינאות תקשורת'!G29 -> 0 | C114: ='ז. קלינאות תקשורת'!H29 -> 0 | E114: ='ז. קלינאות תקשורת'!K29 -> 0 | F114: ='ז. קלינאות תקשורת'!L29 -> 0 | G114: =IF(F114=0,"",'ז. קלינאות תקשורת'!M29) ->  | H114: ='ז. קלינאות תקשורת'!N29 -> 0
A115: ='ז. קלינאות תקשורת'!B30 -> לוח מחיק | B115: ='ז. קלינאות תקשורת'!G30 -> 0 | C115: ='ז. קלינאות תקשורת'!H30 -> 0 | E115: ='ז. קלינאות תקשורת'!K30 -> 0 | F115: ='ז. קלינאות תקשורת'!L30 -> 0 | G115: =IF(F115=0,"",'ז. קלינאות תקשורת'!M30) ->  | H115: ='ז. קלינאות תקשורת'!N30 -> 0
A116: ='ז. קלינאות תקשורת'!B31 -> שטיח | B116: ='ז. קלינאות תקשורת'!G31 -> 0 | C116: ='ז. קלינאות תקשורת'!H31 -> 0 | E116: ='ז. קלינאות תקשורת'!K31 -> 0 | F116: ='ז. קלינאות תקשורת'!L31 -> 0 | G116: =IF(F116=0,"",'ז. קלינאות תקשורת'!M31) ->  | H116: ='ז. קלינאות תקשורת'!N31 -> 0
A117: ='ז. קלינאות תקשורת'!B33 -> סה"כ ציוד קלינאות תקשורת כולל מע"מ | C117: =SUM(C99:C116) -> 0 | E117: =A117 -> סה"כ ציוד קלינאות תקשורת כולל מע"מ | H117: =SUM(H99:H116) -> 0
A118: ='יח. סיכום'!B31 -> חדר סנוזלן | E118: =A118 -> חדר סנוזלן
A119: ='ח. סנוזלן'!B7 -> מנוף תקרה+ התקנה (לסיעודיים) | B119: ='ח. סנוזלן'!G7 -> 0 | C119: ='ח. סנוזלן'!H7 -> 0 | E119: ='ח. סנוזלן'!K7 -> 0 | F119: ='ח. סנוזלן'!L7 -> 0 | G119: =IF(F119=0,"",'ח. סנוזלן'!M7) ->  | H119: ='ח. סנוזלן'!N7 -> 0
A120: ='ח. סנוזלן'!B8 -> עמוד בועות | B120: ='ח. סנוזלן'!G8 -> 0 | C120: ='ח. סנוזלן'!H8 -> 0 | E120: ='ח. סנוזלן'!K8 -> 0 | F120: ='ח. סנוזלן'!L8 -> 0 | G120: =IF(F120=0,"",'ח. סנוזלן'!M8) ->  | H120: ='ח. סנוזלן'!N8 -> 0
A121: ='ח. סנוזלן'!B9 -> מראות מחוסמות | B121: ='ח. סנוזלן'!G9 -> 0 | C121: ='ח. סנוזלן'!H9 -> 0 | E121: ='ח. סנוזלן'!K9 -> 0 | F121: ='ח. סנוזלן'!L9 -> 0 | G121: =IF(F121=0,"",'ח. סנוזלן'!M9) ->  | H121: ='ח. סנוזלן'!N9 -> 0
A122: ='ח. סנוזלן'!B10 -> בסיס מרופד | B122: ='ח. סנוזלן'!G10 -> 0 | C122: ='ח. סנוזלן'!H10 -> 0 | E122: ='ח. סנוזלן'!K10 -> 0 | F122: ='ח. סנוזלן'!L10 -> 0 | G122: =IF(F122=0,"",'ח. סנוזלן'!M10) ->  | H122: ='ח. סנוזלן'!N10 -> 0
A123: ='ח. סנוזלן'!B11 -> פרוג'קטור | B123: ='ח. סנוזלן'!G11 -> 0 | C123: ='ח. סנוזלן'!H11 -> 0 | E123: ='ח. סנוזלן'!K11 -> 0 | F123: ='ח. סנוזלן'!L11 -> 0 | G123: =IF(F123=0,"",'ח. סנוזלן'!M11) ->  | H123: ='ח. סנוזלן'!N11 -> 0
A124: ='ח. סנוזלן'!B12 -> פופ | B124: ='ח. סנוזלן'!G12 -> 0 | C124: ='ח. סנוזלן'!H12 -> 0 | E124: ='ח. סנוזלן'!K12 -> 0 | F124: ='ח. סנוזלן'!L12 -> 0 | G124: =IF(F124=0,"",'ח. סנוזלן'!M12) ->  | H124: ='ח. סנוזלן'!N12 -> 0
A125: ='ח. סנוזלן'!B13 -> מערכת מוסיקה | B125: ='ח. סנוזלן'!G13 -> 0 | C125: ='ח. סנוזלן'!H13 -> 0 | E125: ='ח. סנוזלן'!K13 -> 0 | F125: ='ח. סנוזלן'!L13 -> 0 | G125: =IF(F125=0,"",'ח. סנוזלן'!M13) ->  | H125: ='ח. סנוזלן'!N13 -> 0
A126: ='ח. סנוזלן'!B14 -> ריפוד רצפה וקירות ל 20 מ"ר | B126: ='ח. סנוזלן'!G14 -> 0 | C126: ='ח. סנוזלן'!H14 -> 0 | E126: ='ח. סנוזלן'!K14 -> 0 | F126: ='ח. סנוזלן'!L14 -> 0 | G126: =IF(F126=0,"",'ח. סנוזלן'!M14) ->  | H126: ='ח. סנוזלן'!N14 -> 0
A127: ='ח. סנוזלן'!B15 -> סיבים אופטיים | B127: ='ח. סנוזלן'!G15 -> 0 | C127: ='ח. סנוזלן'!H15 -> 0 | E127: ='ח. סנוזלן'!K15 -> 0 | F127: ='ח. סנוזלן'!L15 -> 0 | G127: =IF(F127=0,"",'ח. סנוזלן'!M15) ->  | H127: ='ח. סנוזלן'!N15 -> 0
A128: ='ח. סנוזלן'!B16 -> כדור מראות+מקרן | B128: ='ח. סנוזלן'!G16 -> 0 | C128: ='ח. סנוזלן'!H16 -> 0 | E128: ='ח. סנוזלן'!K16 -> 0 | F128: ='ח. סנוזלן'!L16 -> 0 | G128: =IF(F128=0,"",'ח. סנוזלן'!M16) ->  | H128: ='ח. סנוזלן'!N16 -> 0
A129: ='ח. סנוזלן'!B17 -> נדנדה | B129: ='ח. סנוזלן'!G17 -> 0 | C129: ='ח. סנוזלן'!H17 -> 0 | E129: ='ח. סנוזלן'!K17 -> 0 | F129: ='ח. סנוזלן'!L17 -> 0 | G129: =IF(F129=0,"",'ח. סנוזלן'!M17) ->  | H129: ='ח. סנוזלן'!N17 -> 0
A130: ='ח. סנוזלן'!B18 -> מתרגם קול לאור | B130: ='ח. סנוזלן'!G18 -> 0 | C130: ='ח. סנוזלן'!H18 -> 0 | E130: ='ח. סנוזלן'!K18 -> 0 | F130: ='ח. סנוזלן'!L18 -> 0 | G130: =IF(F130=0,"",'ח. סנוזלן'!M18) ->  | H130: ='ח. סנוזלן'!N18 -> 0
A131: ='ח. סנוזלן'!B19 -> מתקן גירוי תגובה | B131: ='ח. סנוזלן'!G19 -> 0 | C131: ='ח. סנוזלן'!H19 -> 0 | E131: ='ח. סנוזלן'!K19 -> 0 | F131: ='ח. סנוזלן'!L19 -> 0 | G131: =IF(F131=0,"",'ח. סנוזלן'!M19) ->  | H131: ='ח. סנוזלן'!N19 -> 0
A132: ='ח. סנוזלן'!B20 -> אביזרי עיסוי | B132: ='ח. סנוזלן'!G20 -> 0 | C132: ='ח. סנוזלן'!H20 -> 0 | E132: ='ח. סנוזלן'!K20 -> 0 | F132: ='ח. סנוזלן'!L20 -> 0 | G132: =IF(F132=0,"",'ח. סנוזלן'!M20) ->  | H132: ='ח. סנוזלן'!N20 -> 0
A133: ='ח. סנוזלן'!B21 -> אביזרי גריה קטנים | B133: ='ח. סנוזלן'!G21 -> 0 | C133: ='ח. סנוזלן'!H21 -> 0 | E133: ='ח. סנוזלן'!K21 -> 0 | F133: ='ח. סנוזלן'!L21 -> 0 | G133: =IF(F133=0,"",'ח. סנוזלן'!M21) ->  | H133: ='ח. סנוזלן'!N21 -> 0
A134: ='ח. סנוזלן'!B22 -> ארון אחסון לעזרים | B134: ='ח. סנוזלן'!G22 -> 0 | C134: ='ח. סנוזלן'!H22 -> 0 | E134: ='ח. סנוזלן'!K22 -> 0 | F134: ='ח. סנוזלן'!L22 -> 0 | G134: =IF(F134=0,"",'ח. סנוזלן'!M22) ->  | H134: ='ח. סנוזלן'!N22 -> 0
A135: ='ח. סנוזלן'!B23 -> סה"כ ציוד חדר סנוזלן כולל מע"מ | C135: =SUM(C119:C134) -> 0 | E135: =A135 -> סה"כ ציוד חדר סנוזלן כולל מע"מ | H135: =SUM(H119:H134) -> 0
A136: ='יח. סיכום'!B32 -> מתקני חצר | E136: מתקני חצר
A137: ='ט. מתקני חצר '!B7 -> לחיצת חזה משיכה עליונה | B137: ='ט. מתקני חצר '!H7 -> 0 | C137: ='ט. מתקני חצר '!I7 -> 0 | E137: ='ט. מתקני חצר '!L7 -> 0 | F137: ='ט. מתקני חצר '!M7 -> 0 | G137: =IF(F137=0,"",'ט. מתקני חצר '!N7) ->  | H137: ='ט. מתקני חצר '!O7 -> 0
A138: ='ט. מתקני חצר '!B8 -> מתקן דחיקת כתפיים למשתמש | B138: ='ט. מתקני חצר '!H8 -> 0 | C138: ='ט. מתקני חצר '!I8 -> 0 | E138: ='ט. מתקני חצר '!L8 -> 0 | F138: ='ט. מתקני חצר '!M8 -> 0 | G138: =IF(F138=0,"",'ט. מתקני חצר '!N8) ->  | H138: ='ט. מתקני חצר '!O8 -> 0
A139: ='ט. מתקני חצר '!B9 -> מתקן פרפר חזה | B139: ='ט. מתקני חצר '!H9 -> 0 | C139: ='ט. מתקני חצר '!I9 -> 0 | E139: ='ט. מתקני חצר '!L9 -> 0 | F139: ='ט. מתקני חצר '!M9 -> 0 | G139: =IF(F139=0,"",'ט. מתקני חצר '!N9) ->  | H139: ='ט. מתקני חצר '!O9 -> 0
A140: ='ט. מתקני חצר '!B10 -> מתקן פרפר הפוך | B140: ='ט. מתקני חצר '!H10 -> 0 | C140: ='ט. מתקני חצר '!I10 -> 0 | E140: ='ט. מתקני חצר '!L10 -> 0 | F140: ='ט. מתקני חצר '!M10 -> 0 | G140: =IF(F140=0,"",'ט. מתקני חצר '!N10) ->  | H140: ='ט. מתקני חצר '!O10 -> 0
A141: ='ט. מתקני חצר '!B11 -> מתקן מקבילי כנף לזוג משתמשים | B141: ='ט. מתקני חצר '!H11 -> 0 | C141: ='ט. מתקני חצר '!I11 -> 0 | E141: ='ט. מתקני חצר '!L11 -> 0 | F141: ='ט. מתקני חצר '!M11 -> 0 | G141: =IF(F141=0,"",'ט. מתקני חצר '!N11) ->  | H141: ='ט. מתקני חצר '!O11 -> 0
A142: ='ט. מתקני חצר '!B12 -> מתקן דחיקת רגליים לזוג משתמשים | B142: ='ט. מתקני חצר '!H12 -> 0 | C142: ='ט. מתקני חצר '!I12 -> 0 | E142: ='ט. מתקני חצר '!L12 -> 0 | F142: ='ט. מתקני חצר '!M12 -> 0 | G142: =IF(F142=0,"",'ט. מתקני חצר '!N12) ->  | H142: ='ט. מתקני חצר '!O12 -> 0
A143: ='ט. מתקני חצר '!B13 -> מתקן סקי | B143: ='ט. מתקני חצר '!H13 -> 0 | C143: ='ט. מתקני חצר '!I13 -> 0 | E143: ='ט. מתקני חצר '!L13 -> 0 | F143: ='ט. מתקני חצר '!M13 -> 0 | G143: =IF(F143=0,"",'ט. מתקני חצר '!N13) ->  | H143: ='ט. מתקני חצר '!O13 -> 0
A144: ='ט. מתקני חצר '!B14 -> מתקן הליכה באוויר לזוג משתמשים | B144: ='ט. מתקני חצר '!H14 -> 0 | C144: ='ט. מתקני חצר '!I14 -> 0 | E144: ='ט. מתקני חצר '!L14 -> 0 | F144: ='ט. מתקני חצר '!M14 -> 0 | G144: =IF(F144=0,"",'ט. מתקני חצר '!N14) ->  | H144: ='ט. מתקני חצר '!O14 -> 0
A145: ='ט. מתקני חצר '!B15 -> מתקן חתירה בכורסא | B145: ='ט. מתקני חצר '!H15 -> 0 | C145: ='ט. מתקני חצר '!I15 -> 0 | E145: ='ט. מתקני חצר '!L15 -> 0 | F145: ='ט. מתקני חצר '!M15 -> 0 | G145: =IF(F145=0,"",'ט. מתקני חצר '!N15) ->  | H145: ='ט. מתקני חצר '!O15 -> 0
A146: ='ט. מתקני חצר '!B16 -> ממתקן מאמן אגן שרירי בטן ישבן וירכיים בתנועת מטוטלת | B146: ='ט. מתקני חצר '!H16 -> 0 | C146: ='ט. מתקני חצר '!I16 -> 0 | E146: ='ט. מתקני חצר '!L16 -> 0 | F146: ='ט. מתקני חצר '!M16 -> 0 | G146: =IF(F146=0,"",'ט. מתקני חצר '!N16) ->  | H146: ='ט. מתקני חצר '!O16 -> 0
A147: ='ט. מתקני חצר '!B17 -> מתקן אופני ידיים רגליים | B147: ='ט. מתקני חצר '!H17 -> 0 | C147: ='ט. מתקני חצר '!I17 -> 0 | E147: ='ט. מתקני חצר '!L17 -> 0 | F147: ='ט. מתקני חצר '!M17 -> 0 | G147: =IF(F147=0,"",'ט. מתקני חצר '!N17) ->  | H147: ='ט. מתקני חצר '!O17 -> 0
A148: ='ט. מתקני חצר '!B18 -> מתקן אימון פולי תחתון בתמיכת חזה | B148: ='ט. מתקני חצר '!H18 -> 0 | C148: ='ט. מתקני חצר '!I18 -> 0 | E148: ='ט. מתקני חצר '!L18 -> 0 | F148: ='ט. מתקני חצר '!M18 -> 0 | G148: =IF(F148=0,"",'ט. מתקני חצר '!N18) ->  | H148: ='ט. מתקני חצר '!O18 -> 0
A149: ='ט. מתקני חצר '!B19 -> מתקן אופני ספיננג | B149: ='ט. מתקני חצר '!H19 -> 0 | C149: ='ט. מתקני חצר '!I19 -> 0 | E149: ='ט. מתקני חצר '!L19 -> 0 | F149: ='ט. מתקני חצר '!M19 -> 0 | G149: =IF(F149=0,"",'ט. מתקני חצר '!N19) ->  | H149: ='ט. מתקני חצר '!O19 -> 0
A150: ='ט. מתקני חצר '!B20 -> מתקן דחיקת רגליים לארבע | B150: ='ט. מתקני חצר '!H20 -> 0 | C150: ='ט. מתקני חצר '!I20 -> 0 | E150: ='ט. מתקני חצר '!L20 -> 0 | F150: ='ט. מתקני חצר '!M20 -> 0 | G150: =IF(F150=0,"",'ט. מתקני חצר '!N20) ->  | H150: ='ט. מתקני חצר '!O20 -> 0
A151: ='ט. מתקני חצר '!B21 -> מתקן מתח –מקבילים וכורסת בטן | B151: ='ט. מתקני חצר '!H21 -> 0 | C151: ='ט. מתקני חצר '!I21 -> 0 | E151: ='ט. מתקני חצר '!L21 -> 0 | F151: ='ט. מתקני חצר '!M21 -> 0 | G151: =IF(F151=0,"",'ט. מתקני חצר '!N21) ->  | H151: ='ט. מתקני חצר '!O21 -> 0
A152: ='ט. מתקני חצר '!B22 -> נדנדה קן לציפור | B152: ='ט. מתקני חצר '!H22 -> 0 | C152: ='ט. מתקני חצר '!I22 -> 0 | E152: ='ט. מתקני חצר '!L22 -> 0 | F152: ='ט. מתקני חצר '!M22 -> 0 | G152: =IF(F152=0,"",'ט. מתקני חצר '!N22) ->  | H152: ='ט. מתקני חצר '!O22 -> 0
A153: ='ט. מתקני חצר '!B23 -> מתקני מוזיקה | B153: ='ט. מתקני חצר '!H23 -> 0 | C153: ='ט. מתקני חצר '!I23 -> 0 | E153: ='ט. מתקני חצר '!L23 -> 0 | F153: ='ט. מתקני חצר '!M23 -> 0 | G153: =IF(F153=0,"",'ט. מתקני חצר '!N23) ->  | H153: ='ט. מתקני חצר '!O23 -> 0
A154: ='ט. מתקני חצר '!B24 -> כדורגל שולחן | B154: ='ט. מתקני חצר '!H24 -> 0 | C154: ='ט. מתקני חצר '!I24 -> 0 | E154: ='ט. מתקני חצר '!L24 -> 0 | F154: ='ט. מתקני חצר '!M24 -> 0 | G154: =IF(F154=0,"",'ט. מתקני חצר '!N24) ->  | H154: ='ט. מתקני חצר '!O24 -> 0
A155: ='ט. מתקני חצר '!B25 -> הוקי אויר | B155: ='ט. מתקני חצר '!H25 -> 0 | C155: ='ט. מתקני חצר '!I25 -> 0 | E155: ='ט. מתקני חצר '!L25 -> 0 | F155: ='ט. מתקני חצר '!M25 -> 0 | G155: =IF(F155=0,"",'ט. מתקני חצר '!N25) ->  | H155: ='ט. מתקני חצר '!O25 -> 0
A156: ='ט. מתקני חצר '!B26 -> משטח גומי | B156: ='ט. מתקני חצר '!H26 -> 0 | C156: ='ט. מתקני חצר '!I26 -> 0 | E156: ='ט. מתקני חצר '!L26 -> 0 | F156: ='ט. מתקני חצר '!M26 -> 0 | G156: =IF(F156=0,"",'ט. מתקני חצר '!N26) ->  | H156: ='ט. מתקני חצר '!O26 -> 0
A157: ='ט. מתקני חצר '!B27 -> סה"כ מתקני חצר (כולל מע"מ) | C157: =SUM(C137:C156) -> 0 | E157: =A157 -> סה"כ מתקני חצר (כולל מע"מ) | H157: =SUM(H137:H156) -> 0
A158: ='יח. סיכום'!B33 -> פיזיותרפיה | E158: פיזיותרפיה
A159: ='י. פיזיותרפיה'!B8 -> בובט מיטת טיפול | B159: ='י. פיזיותרפיה'!G8 -> 0 | C159: ='י. פיזיותרפיה'!H8 -> 0 | E159: ='י. פיזיותרפיה'!K8 -> 0 | F159: ='י. פיזיותרפיה'!L8 -> 0 | G159: =IF(F159=0,"",'י. פיזיותרפיה'!M8) ->  | H159: ='י. פיזיותרפיה'!N8 -> 0
A160: ='י. פיזיותרפיה'!B9 -> כסא מטפל | B160: ='י. פיזיותרפיה'!G9 -> 0 | C160: ='י. פיזיותרפיה'!H9 -> 0 | E160: ='י. פיזיותרפיה'!K9 -> 0 | F160: ='י. פיזיותרפיה'!L9 -> 0 | G160: =IF(F160=0,"",'י. פיזיותרפיה'!M9) ->  | H160: ='י. פיזיותרפיה'!N9 -> 0
A161: ='י. פיזיותרפיה'!B10 -> סולם שבדי ותוספות | B161: ='י. פיזיותרפיה'!G10 -> 0 | C161: ='י. פיזיותרפיה'!H10 -> 0 | E161: ='י. פיזיותרפיה'!K10 -> 0 | F161: ='י. פיזיותרפיה'!L10 -> 0 | G161: =IF(F161=0,"",'י. פיזיותרפיה'!M10) ->  | H161: ='י. פיזיותרפיה'!N10 -> 0
A162: ='י. פיזיותרפיה'!B11 -> אחות אילמת | B162: ='י. פיזיותרפיה'!G11 -> 0 | C162: ='י. פיזיותרפיה'!H11 -> 0 | E162: ='י. פיזיותרפיה'!K11 -> 0 | F162: ='י. פיזיותרפיה'!L11 -> 0 | G162: =IF(F162=0,"",'י. פיזיותרפיה'!M11) ->  | H162: ='י. פיזיותרפיה'!N11 -> 0
A163: ='י. פיזיותרפיה'!B12 -> מקבילים | B163: ='י. פיזיותרפיה'!G12 -> 0 | C163: ='י. פיזיותרפיה'!H12 -> 0 | E163: ='י. פיזיותרפיה'!K12 -> 0 | F163: ='י. פיזיותרפיה'!L12 -> 0 | G163: =IF(F163=0,"",'י. פיזיותרפיה'!M12) ->  | H163: ='י. פיזיותרפיה'!N12 -> 0
A164: ='י. פיזיותרפיה'!B13 -> ארון איחסון | B164: ='י. פיזיותרפיה'!G13 -> 0 | C164: ='י. פיזיותרפיה'!H13 -> 0 | E164: ='י. פיזיותרפיה'!K13 -> 0 | F164: ='י. פיזיותרפיה'!L13 -> 0 | G164: =IF(F164=0,"",'י. פיזיותרפיה'!M13) ->  | H164: ='י. פיזיותרפיה'!N13 -> 0
A165: ='י. פיזיותרפיה'!B14 -> מחשוב | B165: ='י. פיזיותרפיה'!G14 -> 0 | C165: ='י. פיזיותרפיה'!H14 -> 0 | E165: ='י. פיזיותרפיה'!K14 -> 0 | F165: ='י. פיזיותרפיה'!L14 -> 0 | G165: =IF(F165=0,"",'י. פיזיותרפיה'!M14) ->  | H165: ='י. פיזיותרפיה'!N14 -> 0
A166: ='י. פיזיותרפיה'!B17 -> כיסא אקטיבי מיוחד קטן/בינוני | B166: ='י. פיזיותרפיה'!G17 -> 0 | C166: ='י. פיזיותרפיה'!H17 -> 0 | E166: ='י. פיזיותרפיה'!K17 -> 0 | F166: ='י. פיזיותרפיה'!L17 -> 0 | G166: =IF(F166=0,"",'י. פיזיותרפיה'!M17) ->  | H166: ='י. פיזיותרפיה'!N17 -> 0
A167: ='י. פיזיותרפיה'!B18 -> כיסא אקטיבי מיוחד גדול | B167: ='י. פיזיותרפיה'!G18 -> 0 | C167: ='י. פיזיותרפיה'!H18 -> 0 | E167: ='י. פיזיותרפיה'!K18 -> 0 | F167: ='י. פיזיותרפיה'!L18 -> 0 | G167: =IF(F167=0,"",'י. פיזיותרפיה'!M18) ->  | H167: ='י. פיזיותרפיה'!N18 -> 0
A168: ='י. פיזיותרפיה'!B21 -> עמידון קידמי כולל תמיכות | B168: ='י. פיזיותרפיה'!G21 -> 0 | C168: ='י. פיזיותרפיה'!H21 -> 0 | E168: ='י. פיזיותרפיה'!K21 -> 0 | F168: ='י. פיזיותרפיה'!L21 -> 0 | G168: =IF(F168=0,"",'י. פיזיותרפיה'!M21) ->  | H168: ='י. פיזיותרפיה'!N21 -> 0
A169: ='י. פיזיותרפיה'!B22 -> עמידון אחורי כולל תמיכות | B169: ='י. פיזיותרפיה'!G22 -> 0 | C169: ='י. פיזיותרפיה'!H22 -> 0 | E169: ='י. פיזיותרפיה'!K22 -> 0 | F169: ='י. פיזיותרפיה'!L22 -> 0 | G169: =IF(F169=0,"",'י. פיזיותרפיה'!M22) ->  | H169: ='י. פיזיותרפיה'!N22 -> 0
A170: ='י. פיזיותרפיה'!B23 -> מיטת טיל גדולה | B170: ='י. פיזיותרפיה'!G23 -> 0 | C170: ='י. פיזיותרפיה'!H23 -> 0 | E170: ='י. פיזיותרפיה'!K23 -> 0 | F170: ='י. פיזיותרפיה'!L23 -> 0 | G170: =IF(F170=0,"",'י. פיזיותרפיה'!M23) ->  | H170: ='י. פיזיותרפיה'!N23 -> 0
A171: ='י. פיזיותרפיה'!B24 -> עמידון גדול כולל תמיכות מרובות | B171: ='י. פיזיותרפיה'!G24 -> 0 | C171: ='י. פיזיותרפיה'!H24 -> 0 | E171: ='י. פיזיותרפיה'!K24 -> 0 | F171: ='י. פיזיותרפיה'!L24 -> 0 | G171: =IF(F171=0,"",'י. פיזיותרפיה'!M24) ->  | H171: ='י. פיזיותרפיה'!N24 -> 0
A172: ='י. פיזיותרפיה'!B25 -> ישיבה לעמידה עם תמיכות מרובות | B172: ='י. פיזיותרפיה'!G25 -> 0 | C172: ='י. פיזיותרפיה'!H25 -> 0 | E172: ='י. פיזיותרפיה'!K25 -> 0 | F172: ='י. פיזיותרפיה'!L25 -> 0 | G172: =IF(F172=0,"",'י. פיזיותרפיה'!M25) ->  | H172: ='י. פיזיותרפיה'!N25 -> 0
A173: ='י. פיזיותרפיה'!B28 -> הליכון קידמי פשוט | B173: ='י. פיזיותרפיה'!G28 -> 0 | C173: ='י. פיזיותרפיה'!H28 -> 0 | E173: ='י. פיזיותרפיה'!K28 -> 0 | F173: ='י. פיזיותרפיה'!L28 -> 0 | G173: =IF(F173=0,"",'י. פיזיותרפיה'!M28) ->  | H173: ='י. פיזיותרפיה'!N28 -> 0
A174: ='י. פיזיותרפיה'!B29 -> הליכון אחורי ק | B174: ='י. פיזיותרפיה'!G29 -> 0 | C174: ='י. פיזיותרפיה'!H29 -> 0 | E174: ='י. פיזיותרפיה'!K29 -> 0 | F174: ='י. פיזיותרפיה'!L29 -> 0 | G174: =IF(F174=0,"",'י. פיזיותרפיה'!M29) ->  | H174: ='י. פיזיותרפיה'!N29 -> 0
A175: ='י. פיזיותרפיה'!B30 -> הליכון אחורי ב | B175: ='י. פיזיותרפיה'!G30 -> 0 | C175: ='י. פיזיותרפיה'!H30 -> 0 | E175: ='י. פיזיותרפיה'!K30 -> 0 | F175: ='י. פיזיותרפיה'!L30 -> 0 | G175: =IF(F175=0,"",'י. פיזיותרפיה'!M30) ->  | H175: ='י. פיזיותרפיה'!N30 -> 0
A176: ='י. פיזיותרפיה'!B31 -> הליכון אחורי ג | B176: ='י. פיזיותרפיה'!G31 -> 0 | C176: ='י. פיזיותרפיה'!H31 -> 0 | E176: ='י. פיזיותרפיה'!K31 -> 0 | F176: ='י. פיזיותרפיה'!L31 -> 0 | G176: =IF(F176=0,"",'י. פיזיותרפיה'!M31) ->  | H176: ='י. פיזיותרפיה'!N31 -> 0
A177: ='י. פיזיותרפיה'!B32 -> הליכון אמות הדראולי | B177: ='י. פיזיותרפיה'!G32 -> 0 | C177: ='י. פיזיותרפיה'!H32 -> 0 | E177: ='י. פיזיותרפיה'!K32 -> 0 | F177: ='י. פיזיותרפיה'!L32 -> 0 | G177: =IF(F177=0,"",'י. פיזיותרפיה'!M32) ->  | H177: ='י. פיזיותרפיה'!N32 -> 0
A178: ='י. פיזיותרפיה'!B33 -> הליכון אמות רגיל | B178: ='י. פיזיותרפיה'!G33 -> 0 | C178: ='י. פיזיותרפיה'!H33 -> 0 | E178: ='י. פיזיותרפיה'!K33 -> 0 | F178: ='י. פיזיותרפיה'!L33 -> 0 | G178: =IF(F178=0,"",'י. פיזיותרפיה'!M33) ->  | H178: ='י. פיזיותרפיה'!N33 -> 0
A179: ='י. פיזיותרפיה'!B34 -> רולטור בסיסי | B179: ='י. פיזיותרפיה'!G34 -> 0 | C179: ='י. פיזיותרפיה'!H34 -> 0 | E179: ='י. פיזיותרפיה'!K34 -> 0 | F179: ='י. פיזיותרפיה'!L34 -> 0 | G179: =IF(F179=0,"",'י. פיזיותרפיה'!M34) ->  | H179: ='י. פיזיותרפיה'!N34 -> 0
A180: ='י. פיזיותרפיה'!B35 -> רולטור מיוחד תמיכות | B180: ='י. פיזיותרפיה'!G35 -> 0 | C180: ='י. פיזיותרפיה'!H35 -> 0 | E180: ='י. פיזיותרפיה'!K35 -> 0 | F180: ='י. פיזיותרפיה'!L35 -> 0 | G180: =IF(F180=0,"",'י. פיזיותרפיה'!M35) ->  | H180: ='י. פיזיותרפיה'!N35 -> 0
A181: ='י. פיזיותרפיה'!B36 -> הליכון פייסר | B181: ='י. פיזיותרפיה'!G36 -> 0 | C181: ='י. פיזיותרפיה'!H36 -> 0 | E181: ='י. פיזיותרפיה'!K36 -> 0 | F181: ='י. פיזיותרפיה'!L36 -> 0 | G181: =IF(F181=0,"",'י. פיזיותרפיה'!M36) ->  | H181: ='י. פיזיותרפיה'!N36 -> 0
A182: ='י. פיזיותרפיה'!B37 -> הליכון גרילו | B182: ='י. פיזיותרפיה'!G37 -> 0 | C182: ='י. פיזיותרפיה'!H37 -> 0 | E182: ='י. פיזיותרפיה'!K37 -> 0 | F182: ='י. פיזיותרפיה'!L37 -> 0 | G182: =IF(F182=0,"",'י. פיזיותרפיה'!M37) ->  | H182: ='י. פיזיותרפיה'!N37 -> 0
A183: ='י. פיזיותרפיה'!B38 -> הליכון אוכף | B183: ='י. פיזיותרפיה'!G38 -> 0 | C183: ='י. פיזיותרפיה'!H38 -> 0 | E183: ='י. פיזיותרפיה'!K38 -> 0 | F183: ='י. פיזיותרפיה'!L38 -> 0 | G183: =IF(F183=0,"",'י. פיזיותרפיה'!M38) ->  | H183: ='י. פיזיותרפיה'!N38 -> 0
A184: ='י. פיזיותרפיה'!B41 -> מנוף תקרה+ התקנה | B184: ='י. פיזיותרפיה'!G41 -> 0 | C184: ='י. פיזיותרפיה'!H41 -> 0 | E184: ='י. פיזיותרפיה'!K41 -> 0 | F184: ='י. פיזיותרפיה'!L41 -> 0 | G184: =IF(F184=0,"",'י. פיזיותרפיה'!M41) ->  | H184: ='י. פיזיותרפיה'!N41 -> 0
A185: ='י. פיזיותרפיה'!B42 -> מנוף רצפה | B185: ='י. פיזיותרפיה'!G42 -> 0 | C185: ='י. פיזיותרפיה'!H42 -> 0 | E185: ='י. פיזיותרפיה'!K42 -> 0 | F185: ='י. פיזיותרפיה'!L42 -> 0 | G185: =IF(F185=0,"",'י. פיזיותרפיה'!M42) ->  | H185: ='י. פיזיותרפיה'!N42 -> 0
A186: ='י. פיזיותרפיה'!B43 -> מנופי העמדה | B186: ='י. פיזיותרפיה'!G43 -> 0 | C186: ='י. פיזיותרפיה'!H43 -> 0 | E186: ='י. פיזיותרפיה'!K43 -> 0 | F186: ='י. פיזיותרפיה'!L43 -> 0 | G186: =IF(F186=0,"",'י. פיזיותרפיה'!M43) ->  | H186: ='י. פיזיותרפיה'!N43 -> 0
A187: ='י. פיזיותרפיה'!B44 -> ערסלים | B187: ='י. פיזיותרפיה'!G44 -> 0 | C187: ='י. פיזיותרפיה'!H44 -> 0 | E187: ='י. פיזיותרפיה'!K44 -> 0 | F187: ='י. פיזיותרפיה'!L44 -> 0 | G187: =IF(F187=0,"",'י. פיזיותרפיה'!M44) ->  | H187: ='י. פיזיותרפיה'!N44 -> 0
A188: ='י. פיזיותרפיה'!B45 -> תוספת לערסלים מיוחדים | B188: ='י. פיזיותרפיה'!G45 -> 0 | C188: ='י. פיזיותרפיה'!H45 -> 0 | E188: ='י. פיזיותרפיה'!K45 -> 0 | F188: ='י. פיזיותרפיה'!L45 -> 0 | G188: =IF(F188=0,"",'י. פיזיותרפיה'!M45) ->  | H188: ='י. פיזיותרפיה'!N45 -> 0
A189: ='י. פיזיותרפיה'!B48 -> נדנדות | B189: ='י. פיזיותרפיה'!G48 -> 0 | C189: ='י. פיזיותרפיה'!H48 -> 0 | E189: ='י. פיזיותרפיה'!K48 -> 0 | F189: ='י. פיזיותרפיה'!L48 -> 0 | G189: =IF(F189=0,"",'י. פיזיותרפיה'!M48) ->  | H189: ='י. פיזיותרפיה'!N48 -> 0
A190: ='י. פיזיותרפיה'!B49 -> גלילים | B190: ='י. פיזיותרפיה'!G49 -> 0 | C190: ='י. פיזיותרפיה'!H49 -> 0 | E190: ='י. פיזיותרפיה'!K49 -> 0 | F190: ='י. פיזיותרפיה'!L49 -> 0 | G190: =IF(F190=0,"",'י. פיזיותרפיה'!M49) ->  | H190: ='י. פיזיותרפיה'!N49 -> 0
A191: ='י. פיזיותרפיה'!B50 -> כדורים שונים | B191: ='י. פיזיותרפיה'!G50 -> 0 | C191: ='י. פיזיותרפיה'!H50 -> 0 | E191: ='י. פיזיותרפיה'!K50 -> 0 | F191: ='י. פיזיותרפיה'!L50 -> 0 | G191: =IF(F191=0,"",'י. פיזיותרפיה'!M50) ->  | H191: ='י. פיזיותרפיה'!N50 -> 0
A192: ='י. פיזיותרפיה'!B51 -> עזרים לפיתוח שיווי משקל | B192: ='י. פיזיותרפיה'!G51 -> 0 | C192: ='י. פיזיותרפיה'!H51 -> 0 | E192: ='י. פיזיותרפיה'!K51 -> 0 | F192: ='י. פיזיותרפיה'!L51 -> 0 | G192: =IF(F192=0,"",'י. פיזיותרפיה'!M51) ->  | H192: ='י. פיזיותרפיה'!N51 -> 0
A193: ='י. פיזיותרפיה'!B52 -> מזרונים | B193: ='י. פיזיותרפיה'!G52 -> 0 | C193: ='י. פיזיותרפיה'!H52 -> 0 | E193: ='י. פיזיותרפיה'!K52 -> 0 | F193: ='י. פיזיותרפיה'!L52 -> 0 | G193: =IF(F193=0,"",'י. פיזיותרפיה'!M52) ->  | H193: ='י. פיזיותרפיה'!N52 -> 0
A194: ='י. פיזיותרפיה'!B53 -> אביזרי טיפוס | B194: ='י. פיזיותרפיה'!G53 -> 0 | C194: ='י. פיזיותרפיה'!H53 -> 0 | E194: ='י. פיזיותרפיה'!K53 -> 0 | F194: ='י. פיזיותרפיה'!L53 -> 0 | G194: =IF(F194=0,"",'י. פיזיותרפיה'!M53) ->  | H194: ='י. פיזיותרפיה'!N53 -> 0
A195: ='י. פיזיותרפיה'!B54 -> ערכות הפעלה | B195: ='י. פיזיותרפיה'!G54 -> 0 | C195: ='י. פיזיותרפיה'!H54 -> 0 | E195: ='י. פיזיותרפיה'!K54 -> 0 | F195: ='י. פיזיותרפיה'!L54 -> 0 | G195: =IF(F195=0,"",'י. פיזיותרפיה'!M54) ->  | H195: ='י. פיזיותרפיה'!N54 -> 0
A196: ='י. פיזיותרפיה'!B55 -> אביזרים לפעילות קבוצתית | B196: ='י. פיזיותרפיה'!G55 -> 0 | C196: ='י. פיזיותרפיה'!H55 -> 0 | E196: ='י. פיזיותרפיה'!K55 -> 0 | F196: ='י. פיזיותרפיה'!L55 -> 0 | G196: =IF(F196=0,"",'י. פיזיותרפיה'!M55) ->  | H196: ='י. פיזיותרפיה'!N55 -> 0
A197: ='י. פיזיותרפיה'!B56 -> משחקי גירוי תגובה | B197: ='י. פיזיותרפיה'!G56 -> 0 | C197: ='י. פיזיותרפיה'!H56 -> 0 | E197: ='י. פיזיותרפיה'!K56 -> 0 | F197: ='י. פיזיותרפיה'!L56 -> 0 | G197: =IF(F197=0,"",'י. פיזיותרפיה'!M56) ->  | H197: ='י. פיזיותרפיה'!N56 -> 0
A198: ='י. פיזיותרפיה'!B57 -> התקנות והתאמות | B198: ='י. פיזיותרפיה'!G57 -> 0 | C198: ='י. פיזיותרפיה'!H57 -> 0 | E198: ='י. פיזיותרפיה'!K57 -> 0 | F198: ='י. פיזיותרפיה'!L57 -> 0 | G198: =IF(F198=0,"",'י. פיזיותרפיה'!M57) ->  | H198: ='י. פיזיותרפיה'!N57 -> 0
A199: ='י. פיזיותרפיה'!B58 -> עזרי הפעלה ועוררות | B199: ='י. פיזיותרפיה'!G58 -> 0 | C199: ='י. פיזיותרפיה'!H58 -> 0 | E199: ='י. פיזיותרפיה'!K58 -> 0 | F199: ='י. פיזיותרפיה'!L58 -> 0 | G199: =IF(F199=0,"",'י. פיזיותרפיה'!M58) ->  | H199: ='י. פיזיותרפיה'!N58 -> 0
A200: ='י. פיזיותרפיה'!B59 -> עזרי פעילות תנועתית | B200: ='י. פיזיותרפיה'!G59 -> 0 | C200: ='י. פיזיותרפיה'!H59 -> 0 | E200: ='י. פיזיותרפיה'!K59 -> 0 | F200: ='י. פיזיותרפיה'!L59 -> 0 | G200: =IF(F200=0,"",'י. פיזיותרפיה'!M59) ->  | H200: ='י. פיזיותרפיה'!N59 -> 0
... 122 more rows
